Workbook

Sheet PRADŽIA
B1: APIE ŠĮ ŠABLONĄ
B2: Naudokite šią verslo išlaidų biudžeto darbaknygę norėdami stebėti suplanuotas ir faktines išlaidas bei nuokrypius.
B3: Įveskite įmonės pavadinimą ir pridėkite logotipą.
B4: Įveskite informaciją į lenteles darbalapiuose Suplanuotos išlaidos ir Faktinės išlaidos.
B5: Automatiškai atnaujinamos darbalapio Išlaidų nuokrypiai lentelės ir darbalapio Išlaidų analizė diagramos
B6: Pastaba:
B7: Papildomos instrukcijos pateikiamos kiekvieno darbalapio A stulpelyje. Šis tekstas buvo specialiai paslėptas. Norėdami pašalinti tekstą, pasirinkite A stulpelį, tada pasirinkite Naikinti. Norėdami nebeslėpti teksto, pasirinkite A stulpelį, tada pakeiskite šrifto spalvą.
B8: Norėdami sužinoti daugiau apie lenteles, lentelėje paspauskite SHIFT, tada – F10, pasirinkite parinktį LENTELĖ, tada pasirinkite ALTERNATYVUSIS TEKSTAS

Sheet SUPLANUOTOS IŠLAIDOS
B2: Įmonės pavadinimas | K2: Išsamios apskaičiuotos išlaidos
K3: Patamsinti langeliai yra apskaičiuotos vertės.
B4: SUPLANUOTOS IŠLAIDOS | C4: SAU | D4: VAS | E4: KOV | F4: BAL | G4: GEG | H4: BIR | I4: LIE | J4: RGP | K4: RGS | L4: SPL | M4: LAP | N4: GRD | O4: METAI
B5: Darbuotojų išlaidos | C5: Sau | D5: Vas | E5: Kov | F5: Bal | G5: Geg | H5: Bir | I5: Lie | J5: Rgp | K5: Rgs | L5: Spl | M5: Lap | N5: Grd | O5: METAI
B6: Darbo užmokesčiai | C6: 85,000.00 EUR | D6: 85,000.00 EUR | E6: 85,000.00 EUR | F6: 87,500.00 EUR | G6: 87,500.00 EUR | H6: 87,500.00 EUR | I6: 87,500.00 EUR | J6: 92,400.00 EUR | K6: 92,400.00 EUR | L6: 92,400.00 EUR | M6: 92,400.00 EUR | N6: 92,400.00 EUR | O6: =SUM(C6:N6) -> 1,067,000.00 EUR
B7: Išmokos | C7: =C6*0.27 -> 22,950.00 EUR | D7: 22,950.00 EUR | E7: 22,950.00 EUR | F7: 23,625.00 EUR | G7: 23,625.00 EUR | H7: 23,625.00 EUR | I7: 23,625.00 EUR | J7: 24,948.00 EUR | K7: 24,948.00 EUR | L7: 24,948.00 EUR | M7: 24,948.00 EUR | N7: 24,948.00 EUR | O7: =SUM(C7:N7) -> 288,090.00 EUR
B8: Tarpinė suma | C8: =SUBTOTAL(109,EmployeePlan[Sau]) -> 107,950.00 EUR | D8: =SUBTOTAL(109,EmployeePlan[Vas]) -> 107,950.00 EUR | E8: =SUBTOTAL(109,EmployeePlan[Kov]) -> 107,950.00 EUR | F8: =SUBTOTAL(109,EmployeePlan[Bal]) -> 111,125.00 EUR | G8: =SUBTOTAL(109,EmployeePlan[Geg]) -> 111,125.00 EUR | H8: =SUBTOTAL(109,EmployeePlan[Bir]) -> 111,125.00 EUR | I8: =SUBTOTAL(109,EmployeePlan[Lie]) -> 111,125.00 EUR | J8: =SUBTOTAL(109,EmployeePlan[Rgp]) -> 117,348.00 EUR | K8: =SUBTOTAL(109,EmployeePlan[Rgs]) -> 117,348.00 EUR | L8: =SUBTOTAL(109,EmployeePlan[Spl]) -> 117,348.00 EUR | M8: =SUBTOTAL(109,EmployeePlan[Lap]) -> 117,348.00 EUR | N8: =SUBTOTAL(109,EmployeePlan[Grd]) -> 117,348.00 EUR | O8: =SUBTOTAL(109,EmployeePlan[METAI]) -> 1,355,090.00 EUR
B10: Biuro išlaidos | C10: Sau | D10: Vas | E10: Kov | F10: Bal | G10: Geg | H10: Bir | I10: Lie | J10: Rgp | K10: Rgs | L10: Spl | M10: Lap | N10: Grd | O10: METAI
B11: Biuro nuoma | C11: 9,800.00 EUR | D11: 9,800.00 EUR | E11: 9,800.00 EUR | F11: 9,800.00 EUR | G11: 9,800.00 EUR | H11: 9,800.00 EUR | I11: 9,800.00 EUR | J11: 9,800.00 EUR | K11: 9,800.00 EUR | L11: 9,800.00 EUR | M11: 9,800.00 EUR | N11: 9,800.00 EUR | O11: =SUM(C11:N11) -> 117,600.00 EUR
B12: Dujos | D12: 400.00 EUR | E12: 400.00 EUR | F12: 100.00 EUR | G12: 100.00 EUR | H12: 100.00 EUR | I12: 100.00 EUR | J12: 100.00 EUR | K12: 100.00 EUR | L12: 100.00 EUR | M12: 400.00 EUR | N12: 400.00 EUR | O12: 2,300.00 EUR
B13: Elektra | C13: 300.00 EUR | D13: 300.00 EUR | E13: 300.00 EUR | F13: 300.00 EUR | G13: 300.00 EUR | H13: 300.00 EUR | I13: 300.00 EUR | J13: 300.00 EUR | K13: 300.00 EUR | L13: 300.00 EUR | M13: 300.00 EUR | N13: 300.00 EUR | O13: 3,600.00 EUR
B14: Vanduo | C14: 40.00 EUR | D14: 40.00 EUR | E14: 40.00 EUR | F14: 40.00 EUR | G14: 40.00 EUR | H14: 40.00 EUR | I14: 40.00 EUR | J14: 40.00 EUR | K14: 40.00 EUR | L14: 40.00 EUR | M14: 40.00 EUR | N14: 40.00 EUR | O14: 480.00 EUR
B15: Telefonas | C15: 250.00 EUR | D15: 250.00 EUR | E15: 250.00 EUR | F15: 250.00 EUR | G15: 250.00 EUR | H15: 250.00 EUR | I15: 250.00 EUR | J15: 250.00 EUR | K15: 250.00 EUR | L15: 250.00 EUR | M15: 250.00 EUR | N15: 250.00 EUR | O15: 3,000.00 EUR
B16: Interneto prieiga | C16: 180.00 EUR | D16: 180.00 EUR | E16: 180.00 EUR | F16: 180.00 EUR | G16: 180.00 EUR | H16: 180.00 EUR | I16: 180.00 EUR | J16: 180.00 EUR | K16: 180.00 EUR | L16: 180.00 EUR | M16: 180.00 EUR | N16: 180.00 EUR | O16: 2,160.00 EUR
B17: Biuro reikmenys | C17: 200.00 EUR | D17: 200.00 EUR | E17: 200.00 EUR | F17: 200.00 EUR | G17: 200.00 EUR | H17: 200.00 EUR | I17: 200.00 EUR | J17: 200.00 EUR | K17: 200.00 EUR | L17: 200.00 EUR | M17: 200.00 EUR | N17: 200.00 EUR | O17: 2,400.00 EUR
B18: Apsauga | C18: 600.00 EUR | D18: 600.00 EUR | E18: 600.00 EUR | F18: 600.00 EUR | G18: 600.00 EUR | H18: 600.00 EUR | I18: 600.00 EUR | J18: 600.00 EUR | K18: 600.00 EUR | L18: 600.00 EUR | M18: 600.00 EUR | N18: 600.00 EUR | O18: 7,200.00 EUR
B19: Tarpinė suma | C19: =SUBTOTAL(109,OfficePlan[Sau]) -> 11,370.00 EUR | D19: =SUBTOTAL(109,OfficePlan[Vas]) -> 11,770.00 EUR | E19: =SUBTOTAL(109,OfficePlan[Kov]) -> 11,770.00 EUR | F19: =SUBTOTAL(109,OfficePlan[Bal]) -> 11,470.00 EUR | G19: =SUBTOTAL(109,OfficePlan[Geg]) -> 11,470.00 EUR | H19: =SUBTOTAL(109,OfficePlan[Bir]) -> 11,470.00 EUR | I19: =SUBTOTAL(109,OfficePlan[Lie]) -> 11,470.00 EUR | J19: =SUBTOTAL(109,OfficePlan[Rgp]) -> 11,470.00 EUR | K19: =SUBTOTAL(109,OfficePlan[Rgs]) -> 11,470.00 EUR | L19: =SUBTOTAL(109,OfficePlan[Spl]) -> 11,470.00 EUR | M19: =SUBTOTAL(109,OfficePlan[Lap]) -> 11,770.00 EUR | N19: =SUBTOTAL(109,OfficePlan[Grd]) -> 11,770.00 EUR | O19: =SUBTOTAL(109,OfficePlan[METAI]) -> 138,740.00 EUR
B21: Rinkodaros išlaidos | C21: Sau | D21: Vas | E21: Kov | F21: Bal | G21: Geg | H21: Bir | I21: Lie | J21: Rgp | K21: Rgs | L21: Spl | M21: Lap | N21: Grd | O21: METAI
B22: Svetainės išteklių nuoma | C22: 500.00 EUR | D22: 500.00 EUR | E22: 500.00 EUR | F22: 500.00 EUR | G22: 500.00 EUR | H22: 500.00 EUR | I22: 500.00 EUR | J22: 500.00 EUR | K22: 500.00 EUR | L22: 500.00 EUR | M22: 500.00 EUR | N22: 500.00 EUR | O22: =SUM(C22:N22) -> 6,000.00 EUR
B23: Svetainės naujinimai | C23: 200.00 EUR | D23: 200.00 EUR | E23: 200.00 EUR | F23: 200.00 EUR | G23: 200.00 EUR | H23: 1,000.00 EUR | I23: 200.00 EUR | J23: 200.00 EUR | K23: 200.00 EUR | L23: 200.00 EUR | M23: 200.00 EUR | N23: 1,000.00 EUR | O23: 4,000.00 EUR
B24: Dokumentų parengimas | C24: 5,000.00 EUR | D24: 0.00 EUR | E24: 0.00 EUR | F24: 5,000.00 EUR | G24: 0.00 EUR | H24: 0.00 EUR | I24: 5,000.00 EUR | J24: 0.00 EUR | K24: 0.00 EUR | L24: 5,000.00 EUR | M24: 0.00 EUR | N24: 0.00 EUR | O24: 20,000.00 EUR
B25: Dokumentų spausdinimas | C25: 200.00 EUR | D25: 200.00 EUR | E25: 200.00 EUR | F25: 200.00 EUR | G25: 200.00 EUR | H25: 200.00 EUR | I25: 200.00 EUR | J25: 200.00 EUR | K25: 200.00 EUR | L25: 200.00 EUR | M25: 200.00 EUR | N25: 200.00 EUR | O25: 2,400.00 EUR
B26: Rinkodaros įvykiai | C26: 2,000.00 EUR | D26: 2,000.00 EUR | E26: 2,000.00 EUR | F26: 5,000.00 EUR | G26: 2,000.00 EUR | H26: 2,000.00 EUR | I26: 2,000.00 EUR | J26: 5,000.00 EUR | K26: 2,000.00 EUR | L26: 2,000.00 EUR | M26: 2,000.00 EUR | N26: 5,000.00 EUR | O26: 33,000.00 EUR
B27: Įvairios išlaidos | C27: 200.00 EUR | D27: 200.00 EUR | E27: 200.00 EUR | F27: 200.00 EUR | G27: 200.00 EUR | H27: 200.00 EUR | I27: 200.00 EUR | J27: 200.00 EUR | K27: 200.00 EUR | L27: 200.00 EUR | M27: 200.00 EUR | N27: 200.00 EUR | O27: 2,400.00 EUR
B28: Tarpinė suma | C28: =SUBTOTAL(109,MarketingPlan[Sau]) -> 8,100.00 EUR | D28: =SUBTOTAL(109,MarketingPlan[Vas]) -> 3,100.00 EUR | E28: =SUBTOTAL(109,MarketingPlan[Kov]) -> 3,100.00 EUR | F28: =SUBTOTAL(109,MarketingPlan[Bal]) -> 11,100.00 EUR | G28: =SUBTOTAL(109,MarketingPlan[Geg]) -> 3,100.00 EUR | H28: =SUBTOTAL(109,MarketingPlan[Bir]) -> 3,900.00 EUR | I28: =SUBTOTAL(109,MarketingPlan[Lie]) -> 8,100.00 EUR | J28: =SUBTOTAL(109,MarketingPlan[Rgp]) -> 6,100.00 EUR | K28: =SUBTOTAL(109,MarketingPlan[Rgs]) -> 3,100.00 EUR | L28: =SUBTOTAL(109,MarketingPlan[Spl]) -> 8,100.00 EUR | M28: =SUBTOTAL(109,MarketingPlan[Lap]) -> 3,100.00 EUR | N28: =SUBTOTAL(109,MarketingPlan[Grd]) -> 6,900.00 EUR | O28: =SUBTOTAL(109,MarketingPlan[METAI]) -> 67,800.00 EUR
B30: Mokymas / kelionės | C30: Sau | D30: Vas | E30: Kov | F30: Bal | G30: Geg | H30: Bir | I30: Lie | J30: Rgp | K30: Rgs | L30: Spl | M30: Lap | N30: Grd | O30: METAI
B31: Mokymo klasės | C31: 2,000.00 EUR | D31: 2,000.00 EUR | E31: 2,000.00 EUR | F31: 2,000.00 EUR | G31: 2,000.00 EUR | H31: 2,000.00 EUR | I31: 2,000.00 EUR | J31: 2,000.00 EUR | K31: 2,000.00 EUR | L31: 2,000.00 EUR | M31: 2,000.00 EUR | N31: 2,000.00 EUR | O31: =SUM(C31:N31) -> 24,000.00 EUR
B32: Su mokymu susijusios kelionių išlaidos | C32: 2,000.00 EUR | D32: 2,000.00 EUR | E32: 2,000.00 EUR | F32: 2,000.00 EUR | G32: 2,000.00 EUR | H32: 2,000.00 EUR | I32: 2,000.00 EUR | J32: 2,000.00 EUR | K32: 2,000.00 EUR | L32: 2,000.00 EUR | M32: 2,000.00 EUR | N32: 2,000.00 EUR | O32: =SUM(C32:N32) -> 24,000.00 EUR
B33: Tarpinė suma | C33: =SUBTOTAL(109,TrainingAndTravelPlan[Sau]) -> 4,000.00 EUR | D33: =SUBTOTAL(109,TrainingAndTravelPlan[Vas]) -> 4,000.00 EUR | E33: =SUBTOTAL(109,TrainingAndTravelPlan[Kov]) -> 4,000.00 EUR | F33: =SUBTOTAL(109,TrainingAndTravelPlan[Bal]) -> 4,000.00 EUR | G33: =SUBTOTAL(109,TrainingAndTravelPlan[Geg]) -> 4,000.00 EUR | H33: =SUBTOTAL(109,TrainingAndTravelPlan[Bir]) -> 4,000.00 EUR | I33: =SUBTOTAL(109,TrainingAndTravelPlan[Lie]) -> 4,000.00 EUR | J33: =SUBTOTAL(109,TrainingAndTravelPlan[Rgp]) -> 4,000.00 EUR | K33: =SUBTOTAL(109,TrainingAndTravelPlan[Rgs]) -> 4,000.00 EUR | L33: =SUBTOTAL(109,TrainingAndTravelPlan[Spl]) -> 4,000.00 EUR | M33: =SUBTOTAL(109,TrainingAndTravelPlan[Lap]) -> 4,000.00 EUR | N33: =SUBTOTAL(109,TrainingAndTravelPlan[Grd]) -> 4,000.00 EUR | O33: =SUBTOTAL(109,TrainingAndTravelPlan[METAI]) -> 48,000.00 EUR
B35: BENDROSIOS SUMOS | C35: Sau | D35: Vas | E35: Kov | F35: Bal | G35: Geg | H35: Bir | I35: Lie | J35: Rgp | K35: Rgs | L35: Spl | M35: Lap | N35: Grd | O35: Metai
B36: Suplanuotos mėnesio išlaidos | C36: =TrainingAndTravelPlan[[#Totals],[Sau]]+MarketingPlan[[#Totals],[Sau]]+OfficePlan[[#Totals],[Sau]]+EmployeePlan[[#Totals],[Sau]] -> 131,420.00 EUR | D36: =TrainingAndTravelPlan[[#Totals],[Vas]]+MarketingPlan[[#Totals],[Vas]]+OfficePlan[[#Totals],[Vas]]+EmployeePlan[[#Totals],[Vas]] -> 126,820.00 EUR | E36: =TrainingAndTravelPlan[[#Totals],[Kov]]+MarketingPlan[[#Totals],[Kov]]+OfficePlan[[#Totals],[Kov]]+EmployeePlan[[#Totals],[Kov]] -> 126,820.00 EUR | F36: =TrainingAndTravelPlan[[#Totals],[Bal]]+MarketingPlan[[#Totals],[Bal]]+OfficePlan[[#Totals],[Bal]]+EmployeePlan[[#Totals],[Bal]] -> 137,695.00 EUR | G36: =TrainingAndTravelPlan[[#Totals],[Geg]]+MarketingPlan[[#Totals],[Geg]]+OfficePlan[[#Totals],[Geg]]+EmployeePlan[[#Totals],[Geg]] -> 129,695.00 EUR | H36: =TrainingAndTravelPlan[[#Totals],[Bir]]+MarketingPlan[[#Totals],[Bir]]+OfficePlan[[#Totals],[Bir]]+EmployeePlan[[#Totals],[Bir]] -> 130,495.00 EUR | I36: =TrainingAndTravelPlan[[#Totals],[Lie]]+MarketingPlan[[#Totals],[Lie]]+OfficePlan[[#Totals],[Lie]]+EmployeePlan[[#Totals],[Lie]] -> 134,695.00 EUR | J36: =TrainingAndTravelPlan[[#Totals],[Rgp]]+MarketingPlan[[#Totals],[Rgp]]+OfficePlan[[#Totals],[Rgp]]+EmployeePlan[[#Totals],[Rgp]] -> 138,918.00 EUR | K36: =TrainingAndTravelPlan[[#Totals],[Rgs]]+MarketingPlan[[#Totals],[Rgs]]+OfficePlan[[#Totals],[Rgs]]+EmployeePlan[[#Totals],[Rgs]] -> 135,918.00 EUR | L36: =TrainingAndTravelPlan[[#Totals],[Spl]]+MarketingPlan[[#Totals],[Spl]]+OfficePlan[[#Totals],[Spl]]+EmployeePlan[[#Totals],[Spl]] -> 140,918.00 EUR | M36: =TrainingAndTravelPlan[[#Totals],[Lap]]+MarketingPlan[[#Totals],[Lap]]+OfficePlan[[#Totals],[Lap]]+EmployeePlan[[#Totals],[Lap]] -> 136,218.00 EUR | N36: =TrainingAndTravelPlan[[#Totals],[Grd]]+MarketingPlan[[#Totals],[Grd]]+OfficePlan[[#Totals],[Grd]]+EmployeePlan[[#Totals],[Grd]] -> 140,018.00 EUR | O36: =TrainingAndTravelPlan[[#Totals],[METAI]]+MarketingPlan[[#Totals],[METAI]]+OfficePlan[[#Totals],[METAI]]+EmployeePlan[[#Totals],[METAI]] -> 1,609,630.00 EUR
B37: Suplanuotų išlaidų BENDROJI SUMA | C37: =SUM($C$36:C36) -> 131,420.00 EUR | D37: =SUM($C$36:D36) -> 258,240.00 EUR | E37: =SUM($C$36:E36) -> 385,060.00 EUR | F37: =SUM($C$36:F36) -> 522,755.00 EUR | G37: =SUM($C$36:G36) -> 652,450.00 EUR | H37: =SUM($C$36:H36) -> 782,945.00 EUR | I37: =SUM($C$36:I36) -> 917,640.00 EUR | J37: =SUM($C$36:J36) -> 1,056,558.00 EUR | K37: =SUM($C$36:K36) -> 1,192,476.00 EUR | L37: =SUM($C$36:L36) -> 1,333,394.00 EUR | M37: =SUM($C$36:M36) -> 1,469,612.00 EUR | N37: =SUM($C$36:N36) -> 1,609,630.00 EUR

Sheet FAKTINĖS IŠLAIDOS
B2: ='SUPLANUOTOS IŠLAIDOS'!B2:D3 -> Įmonės pavadinimas | K2: =darbalapio_pavadinimas -> Išsamios apskaičiuotos išlaidos
K3: Patamsinti langeliai yra apskaičiuotos vertės.
B4: FAKTINĖS IŠLAIDOS | C4: SAU | D4: VAS | E4: KOV | F4: BAL | G4: GEG | H4: BIR | I4: LIE | J4: RGP | K4: RGS | L4: SPL | M4: LAP | N4: GRD | O4: METAI
B5: Darbuotojų išlaidos | C5: Sau | D5: Vas | E5: Kov | F5: Bal | G5: Geg | H5: Bir | I5: Lie | J5: Rgp | K5: Rgs | L5: Spl | M5: Lap | N5: Grd | O5: METAI
B6: Darbo užmokesčiai | C6: 85,000.00 EUR | D6: 85,000.00 EUR | E6: 85,000.00 EUR | F6: 88,000.00 EUR | G6: 88,000.00 EUR | H6: 88,000.00 EUR | O6: =SUM(C6:N6) -> 519,000.00 EUR
B7: Išmokos | C7: =C6*0.27 -> 22,950.00 EUR | D7: 22,950.00 EUR | E7: 22,950.00 EUR | F7: 23,760.00 EUR | G7: 23,760.00 EUR | H7: 23,760.00 EUR | I7: 0.00 EUR | J7: 0.00 EUR | K7: 0.00 EUR | L7: 0.00 EUR | M7: 0.00 EUR | N7: 0.00 EUR | O7: =SUM(C7:N7) -> 140,130.00 EUR
B8: Tarpinė suma | C8: =SUBTOTAL(109,EmployeeActual[Sau]) -> 107,950.00 EUR | D8: =SUBTOTAL(109,EmployeeActual[Vas]) -> 107,950.00 EUR | E8: =SUBTOTAL(109,EmployeeActual[Kov]) -> 107,950.00 EUR | F8: =SUBTOTAL(109,EmployeeActual[Bal]) -> 111,760.00 EUR | G8: =SUBTOTAL(109,EmployeeActual[Geg]) -> 111,760.00 EUR | H8: =SUBTOTAL(109,EmployeeActual[Bir]) -> 111,760.00 EUR | I8: =SUBTOTAL(109,EmployeeActual[Lie]) -> 0.00 EUR | J8: =SUBTOTAL(109,EmployeeActual[Rgp]) -> 0.00 EUR | K8: =SUBTOTAL(109,EmployeeActual[Rgs]) -> 0.00 EUR | L8: =SUBTOTAL(109,EmployeeActual[Spl]) -> 0.00 EUR | M8: =SUBTOTAL(109,EmployeeActual[Lap]) -> 0.00 EUR | N8: =SUBTOTAL(109,EmployeeActual[Grd]) -> 0.00 EUR | O8: =SUBTOTAL(109,EmployeeActual[METAI]) -> 659,130.00 EUR
B10: Biuro išlaidos | C10: Sau | D10: Vas | E10: Kov | F10: Bal | G10: Geg | H10: Bir | I10: Lie | J10: Rgp | K10: Rgs | L10: Spl | M10: Lap | N10: Grd | O10: METAI
B11: Biuro nuoma | C11: 9,800.00 EUR | D11: 9,800.00 EUR | E11: 9,800.00 EUR | F11: 9,800.00 EUR | G11: 9,800.00 EUR | H11: 9,800.00 EUR | O11: =SUM(C11:N11) -> 58,800.00 EUR
B12: Dujos | C12: 4.00 EUR | D12: 430.00 EUR | E12: 385.00 EUR | F12: 230.00 EUR | G12: 87.00 EUR | H12: 88.00 EUR | O12: 1,224.00 EUR
B13: Elektra | C13: 288.00 EUR | D13: 278.00 EUR | E13: 268.00 EUR | F13: 299.00 EUR | G13: 306.00 EUR | H13: 290.00 EUR | O13: 1,729.00 EUR
B14: Vanduo | C14: 35.00 EUR | D14: 33.00 EUR | E14: 34.00 EUR | F14: 36.00 EUR | G14: 34.00 EUR | H14: 36.00 EUR | O14: 208.00 EUR
B15: Telefonas | C15: 224.00 EUR | D15: 235.00 EUR | E15: 265.00 EUR | F15: 245.00 EUR | G15: 245.00 EUR | H15: 220.00 EUR | O15: 1,434.00 EUR
B16: Interneto prieiga | C16: 180.00 EUR | D16: 180.00 EUR | E16: 180.00 EUR | F16: 180.00 EUR | G16: 180.00 EUR | H16: 180.00 EUR | O16: 1,080.00 EUR
B17: Biuro reikmenys | C17: 256.00 EUR | D17: 142.00 EUR | E17: 160.00 EUR | F17: 221.00 EUR | G17: 256.00 EUR | H17: 240.00 EUR | O17: 1,275.00 EUR
B18: Apsauga | C18: 600.00 EUR | D18: 600.00 EUR | E18: 600.00 EUR | F18: 600.00 EUR | G18: 600.00 EUR | H18: 600.00 EUR | O18: 3,600.00 EUR
B19: Tarpinė suma | C19: =SUBTOTAL(109,OfficeActual[Sau]) -> 11,387.00 EUR | D19: =SUBTOTAL(109,OfficeActual[Vas]) -> 11,698.00 EUR | E19: =SUBTOTAL(109,OfficeActual[Kov]) -> 11,692.00 EUR | F19: =SUBTOTAL(109,OfficeActual[Bal]) -> 11,611.00 EUR | G19: =SUBTOTAL(109,OfficeActual[Geg]) -> 11,508.00 EUR | H19: =SUBTOTAL(109,OfficeActual[Bir]) -> 11,454.00 EUR | I19: =SUBTOTAL(109,OfficeActual[Lie]) -> 0.00 EUR | J19: =SUBTOTAL(109,OfficeActual[Rgp]) -> 0.00 EUR | K19: =SUBTOTAL(109,OfficeActual[Rgs]) -> 0.00 EUR | L19: =SUBTOTAL(109,OfficeActual[Spl]) -> 0.00 EUR | M19: =SUBTOTAL(109,OfficeActual[Lap]) -> 0.00 EUR | N19: =SUBTOTAL(109,OfficeActual[Grd]) -> 0.00 EUR | O19: =SUBTOTAL(109,OfficeActual[METAI]) -> 69,350.00 EUR
B21: Rinkodaros išlaidos | C21: Sau | D21: Vas | E21: Kov | F21: Bal | G21: Geg | H21: Bir | I21: Lie | J21: Rgp | K21: Rgs | L21: Spl | M21: Lap | N21: Grd | O21: METAI
B22: Svetainės išteklių nuoma | C22: 500.00 EUR | D22: 500.00 EUR | E22: 500.00 EUR | F22: 500.00 EUR | G22: 500.00 EUR | H22: 500.00 EUR | O22: =SUM(C22:N22) -> 3,000.00 EUR
B23: Svetainės naujinimai | C23: 200.00 EUR | D23: 200.00 EUR | E23: 200.00 EUR | F23: 200.00 EUR | G23: 200.00 EUR | H23: 1,500.00 EUR | O23: 2,500.00 EUR
B24: Dokumentų parengimas | C24: 4,800.00 EUR | D24: 0.00 EUR | E24: 0.00 EUR | F24: 5,500.00 EUR | G24: 0.00 EUR | H24: 0.00 EUR | O24: 10,300.00 EUR
B25: Dokumentų spausdinimas | C25: 100.00 EUR | D25: 500.00 EUR | E25: 100.00 EUR | F25: 100.00 EUR | G25: 600.00 EUR | H25: 180.00 EUR | O25: 1,580.00 EUR
B26: Rinkodaros įvykiai | C26: 1,800.00 EUR | D26: 2,200.00 EUR | E26: 2,200.00 EUR | F26: 4,700.00 EUR | G26: 1,500.00 EUR | H26: 2,300.00 EUR | O26: 14,700.00 EUR
B27: Įvairios išlaidos | C27: 145.00 EUR | D27: 156.00 EUR | E27: 123.00 EUR | F27: 223.00 EUR | G27: 187.00 EUR | H27: 245.00 EUR | O27: 1,079.00 EUR
B28: Tarpinė suma | C28: =SUBTOTAL(109,MarketingActual[Sau]) -> 7,545.00 EUR | D28: =SUBTOTAL(109,MarketingActual[Vas]) -> 3,556.00 EUR | E28: =SUBTOTAL(109,MarketingActual[Kov]) -> 3,123.00 EUR | F28: =SUBTOTAL(109,MarketingActual[Bal]) -> 11,223.00 EUR | G28: =SUBTOTAL(109,MarketingActual[Geg]) -> 2,987.00 EUR | H28: =SUBTOTAL(109,MarketingActual[Bir]) -> 4,725.00 EUR | I28: =SUBTOTAL(109,MarketingActual[Lie]) -> 0.00 EUR | J28: =SUBTOTAL(109,MarketingActual[Rgp]) -> 0.00 EUR | K28: =SUBTOTAL(109,MarketingActual[Rgs]) -> 0.00 EUR | L28: =SUBTOTAL(109,MarketingActual[Spl]) -> 0.00 EUR | M28: =SUBTOTAL(109,MarketingActual[Lap]) -> 0.00 EUR | N28: =SUBTOTAL(109,MarketingActual[Grd]) -> 0.00 EUR | O28: =SUBTOTAL(109,MarketingActual[METAI]) -> 33,159.00 EUR
B30: Mokymas / kelionės | C30: Sau | D30: Vas | E30: Kov | F30: Bal | G30: Geg | H30: Bir | I30: Lie | J30: Rgp | K30: Rgs | L30: Spl | M30: Lap | N30: Grd | O30: METAI
B31: Mokymo klasės | C31: 1,600.00 EUR | D31: 2,400.00 EUR | E31: 1,400.00 EUR | F31: 1,600.00 EUR | G31: 1,200.00 EUR | H31: 2,800.00 EUR | O31: =SUM(C31:N31) -> 11,000.00 EUR
B32: Su mokymu susijusios kelionių išlaidos | C32: 1,200.00 EUR | D32: 2,200.00 EUR | E32: 1,400.00 EUR | F32: 1,200.00 EUR | G32: 800.00 EUR | H32: 3,500.00 EUR | O32: =SUM(C32:N32) -> 10,300.00 EUR
B33: Tarpinė suma | C33: =SUBTOTAL(109,TrainingAndTravelActual[Sau]) -> 2,800.00 EUR | D33: =SUBTOTAL(109,TrainingAndTravelActual[Vas]) -> 4,600.00 EUR | E33: =SUBTOTAL(109,TrainingAndTravelActual[Kov]) -> 2,800.00 EUR | F33: =SUBTOTAL(109,TrainingAndTravelActual[Bal]) -> 2,800.00 EUR | G33: =SUBTOTAL(109,TrainingAndTravelActual[Geg]) -> 2,000.00 EUR | H33: =SUBTOTAL(109,TrainingAndTravelActual[Bir]) -> 6,300.00 EUR | I33: =SUBTOTAL(109,TrainingAndTravelActual[Lie]) -> 0.00 EUR | J33: =SUBTOTAL(109,TrainingAndTravelActual[Rgp]) -> 0.00 EUR | K33: =SUBTOTAL(109,TrainingAndTravelActual[Rgs]) -> 0.00 EUR | L33: =SUBTOTAL(109,TrainingAndTravelActual[Spl]) -> 0.00 EUR | M33: =SUBTOTAL(109,TrainingAndTravelActual[Lap]) -> 0.00 EUR | N33: =SUBTOTAL(109,TrainingAndTravelActual[Grd]) -> 0.00 EUR | O33: =SUBTOTAL(109,TrainingAndTravelActual[METAI]) -> 21,300.00 EUR
B35: Suplanuotų išlaidų BENDROJI SUMA | C35: Sau | D35: Vas | E35: Kov | F35: Bal | G35: Geg | H35: Bir | I35: Lie | J35: Rgp | K35: Rgs | L35: Spl | M35: Lap | N35: Grd | O35: Metai
B36: Faktinės mėnesio išlaidos | C36: =TrainingAndTravelActual[[#Totals],[Sau]]+MarketingActual[[#Totals],[Sau]]+OfficeActual[[#Totals],[Sau]]+EmployeeActual[[#Totals],[Sau]] -> 129,682.00 EUR | D36: =TrainingAndTravelActual[[#Totals],[Vas]]+MarketingActual[[#Totals],[Vas]]+OfficeActual[[#Totals],[Vas]]+EmployeeActual[[#Totals],[Vas]] -> 127,804.00 EUR | E36: =TrainingAndTravelActual[[#Totals],[Kov]]+MarketingActual[[#Totals],[Kov]]+OfficeActual[[#Totals],[Kov]]+EmployeeActual[[#Totals],[Kov]] -> 125,565.00 EUR | F36: =TrainingAndTravelActual[[#Totals],[Bal]]+MarketingActual[[#Totals],[Bal]]+OfficeActual[[#Totals],[Bal]]+EmployeeActual[[#Totals],[Bal]] -> 137,394.00 EUR | G36: =TrainingAndTravelActual[[#Totals],[Geg]]+MarketingActual[[#Totals],[Geg]]+OfficeActual[[#Totals],[Geg]]+EmployeeActual[[#Totals],[Geg]] -> 128,255.00 EUR | H36: =TrainingAndTravelActual[[#Totals],[Bir]]+MarketingActual[[#Totals],[Bir]]+OfficeActual[[#Totals],[Bir]]+EmployeeActual[[#Totals],[Bir]] -> 134,239.00 EUR | I36: =TrainingAndTravelActual[[#Totals],[Lie]]+MarketingActual[[#Totals],[Lie]]+OfficeActual[[#Totals],[Lie]]+EmployeeActual[[#Totals],[Lie]] -> 0.00 EUR | J36: =TrainingAndTravelActual[[#Totals],[Rgp]]+MarketingActual[[#Totals],[Rgp]]+OfficeActual[[#Totals],[Rgp]]+EmployeeActual[[#Totals],[Rgp]] -> 0.00 EUR | K36: =TrainingAndTravelActual[[#Totals],[Rgs]]+MarketingActual[[#Totals],[Rgs]]+OfficeActual[[#Totals],[Rgs]]+EmployeeActual[[#Totals],[Rgs]] -> 0.00 EUR | L36: =TrainingAndTravelActual[[#Totals],[Spl]]+MarketingActual[[#Totals],[Spl]]+OfficeActual[[#Totals],[Spl]]+EmployeeActual[[#Totals],[Spl]] -> 0.00 EUR | M36: =TrainingAndTravelActual[[#Totals],[Lap]]+MarketingActual[[#Totals],[Lap]]+OfficeActual[[#Totals],[Lap]]+EmployeeActual[[#Totals],[Lap]] -> 0.00 EUR | N36: =TrainingAndTravelActual[[#Totals],[Grd]]+MarketingActual[[#Totals],[Grd]]+OfficeActual[[#Totals],[Grd]]+EmployeeActual[[#Totals],[Grd]] -> 0.00 EUR | O36: =TrainingAndTravelActual[[#Totals],[METAI]]+MarketingActual[[#Totals],[METAI]]+OfficeActual[[#Totals],[METAI]]+EmployeeActual[[#Totals],[METAI]] -> 782,939.00 EUR
B37: Faktinių išlaidų BENDROJI SUMA | C37: =SUM($C$36:C36) -> 129,682.00 EUR | D37: =SUM($C$36:D36) -> 257,486.00 EUR | E37: =SUM($C$36:E36) -> 383,051.00 EUR | F37: =SUM($C$36:F36) -> 520,445.00 EUR | G37: =SUM($C$36:G36) -> 648,700.00 EUR | H37: =SUM($C$36:H36) -> 782,939.00 EUR | I37: =SUM($C$36:I36) -> 782,939.00 EUR | J37: =SUM($C$36:J36) -> 782,939.00 EUR | K37: =SUM($C$36:K36) -> 782,939.00 EUR | L37: =SUM($C$36:L36) -> 782,939.00 EUR | M37: =SUM($C$36:M36) -> 782,939.00 EUR | N37: =SUM($C$36:N36) -> 782,939.00 EUR

Sheet IŠLAIDŲ NUOKRYPIAI
B2: ='SUPLANUOTOS IŠLAIDOS'!B2:D3 -> Įmonės pavadinimas | K2: =darbalapio_pavadinimas -> Išsamios apskaičiuotos išlaidos
K3: Patamsinti langeliai yra apskaičiuotos vertės.
B4: IŠLAIDŲ NUOKRYPIAI | C4: SAU | D4: VAS | E4: KOV | F4: BAL | G4: GEG | H4: BIR | I4: LIE | J4: RGP | K4: RGS | L4: SPL | M4: LAP | N4: GRD | O4: METAI
B5: Darbuotojų išlaidos | C5: Sau | D5: Vas | E5: Kov | F5: Bal | G5: Geg | H5: Bir | I5: Lie | J5: Rgp | K5: Rgs | L5: Spl | M5: Lap | N5: Grd | O5: METAI
B6: Darbo užmokesčiai | C6: =INDEX(EmployeePlan[],MATCH(INDEX(EmployeeVariances[],ROW()-ROW(EmployeeVariances[[#Headers],[Sau]]),1),INDEX(EmployeePlan[],,1),0),MATCH(EmployeeVariances[[#Headers],[Sau]],EmployeePlan[#Headers],0))-INDEX(EmployeeActual[],MATCH(INDEX(EmployeeVariances[],ROW()-ROW(EmployeeVariances[[#Headers],[Sau]]),1),INDEX(EmployeePlan[],,1),0),MATCH(EmployeeVariances[[#Headers],[Sau]],EmployeeActual[#Headers],0)) -> 0.00 EUR | D6: =INDEX(EmployeePlan[],MATCH(INDEX(EmployeeVariances[],ROW()-ROW(EmployeeVariances[[#Headers],[Vas]]),1),INDEX(EmployeePlan[],,1),0),MATCH(EmployeeVariances[[#Headers],[Vas]],EmployeePlan[#Headers],0))-INDEX(EmployeeActual[],MATCH(INDEX(EmployeeVariances[],ROW()-ROW(EmployeeVariances[[#Headers],[Vas]]),1),INDEX(EmployeePlan[],,1),0),MATCH(EmployeeVariances[[#Headers],[Vas]],EmployeeActual[#Headers],0)) -> 0.00 EUR | E6: =INDEX(EmployeePlan[],MATCH(INDEX(EmployeeVariances[],ROW()-ROW(EmployeeVariances[[#Headers],[Kov]]),1),INDEX(EmployeePlan[],,1),0),MATCH(EmployeeVariances[[#Headers],[Kov]],EmployeePlan[#Headers],0))-INDEX(EmployeeActual[],MATCH(INDEX(EmployeeVariances[],ROW()-ROW(EmployeeVariances[[#Headers],[Kov]]),1),INDEX(EmployeePlan[],,1),0),MATCH(EmployeeVariances[[#Headers],[Kov]],EmployeeActual[#Headers],0)) -> 0.00 EUR | F6: =INDEX(EmployeePlan[],MATCH(INDEX(EmployeeVariances[],ROW()-ROW(EmployeeVariances[[#Headers],[Bal]]),1),INDEX(EmployeePlan[],,1),0),MATCH(EmployeeVariances[[#Headers],[Bal]],EmployeePlan[#Headers],0))-INDEX(EmployeeActual[],MATCH(INDEX(EmployeeVariances[],ROW()-ROW(EmployeeVariances[[#Headers],[Bal]]),1),INDEX(EmployeePlan[],,1),0),MATCH(EmployeeVariances[[#Headers],[Bal]],EmployeeActual[#Headers],0)) -> -500.00 EUR | G6: =INDEX(EmployeePlan[],MATCH(INDEX(EmployeeVariances[],ROW()-ROW(EmployeeVariances[[#Headers],[Geg]]),1),INDEX(EmployeePlan[],,1),0),MATCH(EmployeeVariances[[#Headers],[Geg]],EmployeePlan[#Headers],0))-INDEX(EmployeeActual[],MATCH(INDEX(EmployeeVariances[],ROW()-ROW(EmployeeVariances[[#Headers],[Geg]]),1),INDEX(EmployeePlan[],,1),0),MATCH(EmployeeVariances[[#Headers],[Geg]],EmployeeActual[#Headers],0)) -> -500.00 EUR | H6: =INDEX(EmployeePlan[],MATCH(INDEX(EmployeeVariances[],ROW()-ROW(EmployeeVariances[[#Headers],[Bir]]),1),INDEX(EmployeePlan[],,1),0),MATCH(EmployeeVariances[[#Headers],[Bir]],EmployeePlan[#Headers],0))-INDEX(EmployeeActual[],MATCH(INDEX(EmployeeVariances[],ROW()-ROW(EmployeeVariances[[#Headers],[Bir]]),1),INDEX(EmployeePlan[],,1),0),MATCH(EmployeeVariances[[#Headers],[Bir]],EmployeeActual[#Headers],0)) -> -500.00 EUR | I6: =INDEX(EmployeePlan[],MATCH(INDEX(EmployeeVariances[],ROW()-ROW(EmployeeVariances[[#Headers],[Lie]]),1),INDEX(EmployeePlan[],,1),0),MATCH(EmployeeVariances[[#Headers],[Lie]],EmployeePlan[#Headers],0))-INDEX(EmployeeActual[],MATCH(INDEX(EmployeeVariances[],ROW()-ROW(EmployeeVariances[[#Headers],[Lie]]),1),INDEX(EmployeePlan[],,1),0),MATCH(EmployeeVariances[[#Headers],[Lie]],EmployeeActual[#Headers],0)) -> 87,500.00 EUR | J6: =INDEX(EmployeePlan[],MATCH(INDEX(EmployeeVariances[],ROW()-ROW(EmployeeVariances[[#Headers],[Rgp]]),1),INDEX(EmployeePlan[],,1),0),MATCH(EmployeeVariances[[#Headers],[Rgp]],EmployeePlan[#Headers],0))-INDEX(EmployeeActual[],MATCH(INDEX(EmployeeVariances[],ROW()-ROW(EmployeeVariances[[#Headers],[Rgp]]),1),INDEX(EmployeePlan[],,1),0),MATCH(EmployeeVariances[[#Headers],[Rgp]],EmployeeActual[#Headers],0)) -> 92,400.00 EUR | K6: =INDEX(EmployeePlan[],MATCH(INDEX(EmployeeVariances[],ROW()-ROW(EmployeeVariances[[#Headers],[Rgs]]),1),INDEX(EmployeePlan[],,1),0),MATCH(EmployeeVariances[[#Headers],[Rgs]],EmployeePlan[#Headers],0))-INDEX(EmployeeActual[],MATCH(INDEX(EmployeeVariances[],ROW()-ROW(EmployeeVariances[[#Headers],[Rgs]]),1),INDEX(EmployeePlan[],,1),0),MATCH(EmployeeVariances[[#Headers],[Rgs]],EmployeeActual[#Headers],0)) -> 92,400.00 EUR | L6: =INDEX(EmployeePlan[],MATCH(INDEX(EmployeeVariances[],ROW()-ROW(EmployeeVariances[[#Headers],[Spl]]),1),INDEX(EmployeePlan[],,1),0),MATCH(EmployeeVariances[[#Headers],[Spl]],EmployeePlan[#Headers],0))-INDEX(EmployeeActual[],MATCH(INDEX(EmployeeVariances[],ROW()-ROW(EmployeeVariances[[#Headers],[Spl]]),1),INDEX(EmployeePlan[],,1),0),MATCH(EmployeeVariances[[#Headers],[Spl]],EmployeeActual[#Headers],0)) -> 92,400.00 EUR | M6: =INDEX(EmployeePlan[],MATCH(INDEX(EmployeeVariances[],ROW()-ROW(EmployeeVariances[[#Headers],[Lap]]),1),INDEX(EmployeePlan[],,1),0),MATCH(EmployeeVariances[[#Headers],[Lap]],EmployeePlan[#Headers],0))-INDEX(EmployeeActual[],MATCH(INDEX(EmployeeVariances[],ROW()-ROW(EmployeeVariances[[#Headers],[Lap]]),1),INDEX(EmployeePlan[],,1),0),MATCH(EmployeeVariances[[#Headers],[Lap]],EmployeeActual[#Headers],0)) -> 92,400.00 EUR | N6: =INDEX(EmployeePlan[],MATCH(INDEX(EmployeeVariances[],ROW()-ROW(EmployeeVariances[[#Headers],[Grd]]),1),INDEX(EmployeePlan[],,1),0),MATCH(EmployeeVariances[[#Headers],[Grd]],EmployeePlan[#Headers],0))-INDEX(EmployeeActual[],MATCH(INDEX(EmployeeVariances[],ROW()-ROW(EmployeeVariances[[#Headers],[Grd]]),1),INDEX(EmployeePlan[],,1),0),MATCH(EmployeeVariances[[#Headers],[Grd]],EmployeeActual[#Headers],0)) -> 92,400.00 EUR | O6: =SUM(EmployeeVariances[[#This Row],[Sau]:[Grd]]) -> 548,000.00 EUR
B7: Išmokos | C7: =INDEX(EmployeePlan[],MATCH(INDEX(EmployeeVariances[],ROW()-ROW(EmployeeVariances[[#Headers],[Sau]]),1),INDEX(EmployeePlan[],,1),0),MATCH(EmployeeVariances[[#Headers],[Sau]],EmployeePlan[#Headers],0))-INDEX(EmployeeActual[],MATCH(INDEX(EmployeeVariances[],ROW()-ROW(EmployeeVariances[[#Headers],[Sau]]),1),INDEX(EmployeePlan[],,1),0),MATCH(EmployeeVariances[[#Headers],[Sau]],EmployeeActual[#Headers],0)) -> 0.00 EUR | D7: =INDEX(EmployeePlan[],MATCH(INDEX(EmployeeVariances[],ROW()-ROW(EmployeeVariances[[#Headers],[Vas]]),1),INDEX(EmployeePlan[],,1),0),MATCH(EmployeeVariances[[#Headers],[Vas]],EmployeePlan[#Headers],0))-INDEX(EmployeeActual[],MATCH(INDEX(EmployeeVariances[],ROW()-ROW(EmployeeVariances[[#Headers],[Vas]]),1),INDEX(EmployeePlan[],,1),0),MATCH(EmployeeVariances[[#Headers],[Vas]],EmployeeActual[#Headers],0)) -> 0.00 EUR | E7: =INDEX(EmployeePlan[],MATCH(INDEX(EmployeeVariances[],ROW()-ROW(EmployeeVariances[[#Headers],[Kov]]),1),INDEX(EmployeePlan[],,1),0),MATCH(EmployeeVariances[[#Headers],[Kov]],EmployeePlan[#Headers],0))-INDEX(EmployeeActual[],MATCH(INDEX(EmployeeVariances[],ROW()-ROW(EmployeeVariances[[#Headers],[Kov]]),1),INDEX(EmployeePlan[],,1),0),MATCH(EmployeeVariances[[#Headers],[Kov]],EmployeeActual[#Headers],0)) -> 0.00 EUR | F7: =INDEX(EmployeePlan[],MATCH(INDEX(EmployeeVariances[],ROW()-ROW(EmployeeVariances[[#Headers],[Bal]]),1),INDEX(EmployeePlan[],,1),0),MATCH(EmployeeVariances[[#Headers],[Bal]],EmployeePlan[#Headers],0))-INDEX(EmployeeActual[],MATCH(INDEX(EmployeeVariances[],ROW()-ROW(EmployeeVariances[[#Headers],[Bal]]),1),INDEX(EmployeePlan[],,1),0),MATCH(EmployeeVariances[[#Headers],[Bal]],EmployeeActual[#Headers],0)) -> -135.00 EUR | G7: =INDEX(EmployeePlan[],MATCH(INDEX(EmployeeVariances[],ROW()-ROW(EmployeeVariances[[#Headers],[Geg]]),1),INDEX(EmployeePlan[],,1),0),MATCH(EmployeeVariances[[#Headers],[Geg]],EmployeePlan[#Headers],0))-INDEX(EmployeeActual[],MATCH(INDEX(EmployeeVariances[],ROW()-ROW(EmployeeVariances[[#Headers],[Geg]]),1),INDEX(EmployeePlan[],,1),0),MATCH(EmployeeVariances[[#Headers],[Geg]],EmployeeActual[#Headers],0)) -> -135.00 EUR | H7: =INDEX(EmployeePlan[],MATCH(INDEX(EmployeeVariances[],ROW()-ROW(EmployeeVariances[[#Headers],[Bir]]),1),INDEX(EmployeePlan[],,1),0),MATCH(EmployeeVariances[[#Headers],[Bir]],EmployeePlan[#Headers],0))-INDEX(EmployeeActual[],MATCH(INDEX(EmployeeVariances[],ROW()-ROW(EmployeeVariances[[#Headers],[Bir]]),1),INDEX(EmployeePlan[],,1),0),MATCH(EmployeeVariances[[#Headers],[Bir]],EmployeeActual[#Headers],0)) -> -135.00 EUR | I7: =INDEX(EmployeePlan[],MATCH(INDEX(EmployeeVariances[],ROW()-ROW(EmployeeVariances[[#Headers],[Lie]]),1),INDEX(EmployeePlan[],,1),0),MATCH(EmployeeVariances[[#Headers],[Lie]],EmployeePlan[#Headers],0))-INDEX(EmployeeActual[],MATCH(INDEX(EmployeeVariances[],ROW()-ROW(EmployeeVariances[[#Headers],[Lie]]),1),INDEX(EmployeePlan[],,1),0),MATCH(EmployeeVariances[[#Headers],[Lie]],EmployeeActual[#Headers],0)) -> 23,625.00 EUR | J7: =INDEX(EmployeePlan[],MATCH(INDEX(EmployeeVariances[],ROW()-ROW(EmployeeVariances[[#Headers],[Rgp]]),1),INDEX(EmployeePlan[],,1),0),MATCH(EmployeeVariances[[#Headers],[Rgp]],EmployeePlan[#Headers],0))-INDEX(EmployeeActual[],MATCH(INDEX(EmployeeVariances[],ROW()-ROW(EmployeeVariances[[#Headers],[Rgp]]),1),INDEX(EmployeePlan[],,1),0),MATCH(EmployeeVariances[[#Headers],[Rgp]],EmployeeActual[#Headers],0)) -> 24,948.00 EUR | K7: =INDEX(EmployeePlan[],MATCH(INDEX(EmployeeVariances[],ROW()-ROW(EmployeeVariances[[#Headers],[Rgs]]),1),INDEX(EmployeePlan[],,1),0),MATCH(EmployeeVariances[[#Headers],[Rgs]],EmployeePlan[#Headers],0))-INDEX(EmployeeActual[],MATCH(INDEX(EmployeeVariances[],ROW()-ROW(EmployeeVariances[[#Headers],[Rgs]]),1),INDEX(EmployeePlan[],,1),0),MATCH(EmployeeVariances[[#Headers],[Rgs]],EmployeeActual[#Headers],0)) -> 24,948.00 EUR | L7: =INDEX(EmployeePlan[],MATCH(INDEX(EmployeeVariances[],ROW()-ROW(EmployeeVariances[[#Headers],[Spl]]),1),INDEX(EmployeePlan[],,1),0),MATCH(EmployeeVariances[[#Headers],[Spl]],EmployeePlan[#Headers],0))-INDEX(EmployeeActual[],MATCH(INDEX(EmployeeVariances[],ROW()-ROW(EmployeeVariances[[#Headers],[Spl]]),1),INDEX(EmployeePlan[],,1),0),MATCH(EmployeeVariances[[#Headers],[Spl]],EmployeeActual[#Headers],0)) -> 24,948.00 EUR | M7: =INDEX(EmployeePlan[],MATCH(INDEX(EmployeeVariances[],ROW()-ROW(EmployeeVariances[[#Headers],[Lap]]),1),INDEX(EmployeePlan[],,1),0),MATCH(EmployeeVariances[[#Headers],[Lap]],EmployeePlan[#Headers],0))-INDEX(EmployeeActual[],MATCH(INDEX(EmployeeVariances[],ROW()-ROW(EmployeeVariances[[#Headers],[Lap]]),1),INDEX(EmployeePlan[],,1),0),MATCH(EmployeeVariances[[#Headers],[Lap]],EmployeeActual[#Headers],0)) -> 24,948.00 EUR | N7: =INDEX(EmployeePlan[],MATCH(INDEX(EmployeeVariances[],ROW()-ROW(EmployeeVariances[[#Headers],[Grd]]),1),INDEX(EmployeePlan[],,1),0),MATCH(EmployeeVariances[[#Headers],[Grd]],EmployeePlan[#Headers],0))-INDEX(EmployeeActual[],MATCH(INDEX(EmployeeVariances[],ROW()-ROW(EmployeeVariances[[#Headers],[Grd]]),1),INDEX(EmployeePlan[],,1),0),MATCH(EmployeeVariances[[#Headers],[Grd]],EmployeeActual[#Headers],0)) -> 24,948.00 EUR | O7: =SUM(EmployeeVariances[[#This Row],[Sau]:[Grd]]) -> 147,960.00 EUR
B8: Tarpinė suma | C8: =SUBTOTAL(109,EmployeeVariances[Sau]) -> 0.00 EUR | D8: =SUBTOTAL(109,EmployeeVariances[Vas]) -> 0.00 EUR | E8: =SUBTOTAL(109,EmployeeVariances[Kov]) -> 0.00 EUR | F8: =SUBTOTAL(109,EmployeeVariances[Bal]) -> -635.00 EUR | G8: =SUBTOTAL(109,EmployeeVariances[Geg]) -> -635.00 EUR | H8: =SUBTOTAL(109,EmployeeVariances[Bir]) -> -635.00 EUR | I8: =SUBTOTAL(109,EmployeeVariances[Lie]) -> 111,125.00 EUR | J8: =SUBTOTAL(109,EmployeeVariances[Rgp]) -> 117,348.00 EUR | K8: =SUBTOTAL(109,EmployeeVariances[Rgs]) -> 117,348.00 EUR | L8: =SUBTOTAL(109,EmployeeVariances[Spl]) -> 117,348.00 EUR | M8: =SUBTOTAL(109,EmployeeVariances[Lap]) -> 117,348.00 EUR | N8: =SUBTOTAL(109,EmployeeVariances[Grd]) -> 117,348.00 EUR | O8: =SUBTOTAL(109,EmployeeVariances[METAI]) -> 695,960.00 EUR
B10: Biuro išlaidos | C10: Sau | D10: Vas | E10: Kov | F10: Bal | G10: Geg | H10: Bir | I10: Lie | J10: Rgp | K10: Rgs | L10: Spl | M10: Lap | N10: Grd | O10: METAI
B11: Biuro nuoma | C11: =INDEX(OfficePlan[],MATCH(INDEX(OfficeVariances[],ROW()-ROW(OfficeVariances[[#Headers],[Sau]]),1),INDEX(OfficePlan[],,1),0),MATCH(OfficeVariances[[#Headers],[Sau]],OfficePlan[#Headers],0))-INDEX(OfficeActual[],MATCH(INDEX(OfficeVariances[],ROW()-ROW(OfficeVariances[[#Headers],[Sau]]),1),INDEX(OfficePlan[],,1),0),MATCH(OfficeVariances[[#Headers],[Sau]],OfficeActual[#Headers],0)) -> 0.00 EUR | D11: =INDEX(OfficePlan[],MATCH(INDEX(OfficeVariances[],ROW()-ROW(OfficeVariances[[#Headers],[Vas]]),1),INDEX(OfficePlan[],,1),0),MATCH(OfficeVariances[[#Headers],[Vas]],OfficePlan[#Headers],0))-INDEX(OfficeActual[],MATCH(INDEX(OfficeVariances[],ROW()-ROW(OfficeVariances[[#Headers],[Vas]]),1),INDEX(OfficePlan[],,1),0),MATCH(OfficeVariances[[#Headers],[Vas]],OfficeActual[#Headers],0)) -> 0.00 EUR | E11: =INDEX(OfficePlan[],MATCH(INDEX(OfficeVariances[],ROW()-ROW(OfficeVariances[[#Headers],[Kov]]),1),INDEX(OfficePlan[],,1),0),MATCH(OfficeVariances[[#Headers],[Kov]],OfficePlan[#Headers],0))-INDEX(OfficeActual[],MATCH(INDEX(OfficeVariances[],ROW()-ROW(OfficeVariances[[#Headers],[Kov]]),1),INDEX(OfficePlan[],,1),0),MATCH(OfficeVariances[[#Headers],[Kov]],OfficeActual[#Headers],0)) -> 0.00 EUR | F11: =INDEX(OfficePlan[],MATCH(INDEX(OfficeVariances[],ROW()-ROW(OfficeVariances[[#Headers],[Bal]]),1),INDEX(OfficePlan[],,1),0),MATCH(OfficeVariances[[#Headers],[Bal]],OfficePlan[#Headers],0))-INDEX(OfficeActual[],MATCH(INDEX(OfficeVariances[],ROW()-ROW(OfficeVariances[[#Headers],[Bal]]),1),INDEX(OfficePlan[],,1),0),MATCH(OfficeVariances[[#Headers],[Bal]],OfficeActual[#Headers],0)) -> 0.00 EUR | G11: =INDEX(OfficePlan[],MATCH(INDEX(OfficeVariances[],ROW()-ROW(OfficeVariances[[#Headers],[Geg]]),1),INDEX(OfficePlan[],,1),0),MATCH(OfficeVariances[[#Headers],[Geg]],OfficePlan[#Headers],0))-INDEX(OfficeActual[],MATCH(INDEX(OfficeVariances[],ROW()-ROW(OfficeVariances[[#Headers],[Geg]]),1),INDEX(OfficePlan[],,1),0),MATCH(OfficeVariances[[#Headers],[Geg]],OfficeActual[#Headers],0)) -> 0.00 EUR | H11: =INDEX(OfficePlan[],MATCH(INDEX(OfficeVariances[],ROW()-ROW(OfficeVariances[[#Headers],[Bir]]),1),INDEX(OfficePlan[],,1),0),MATCH(OfficeVariances[[#Headers],[Bir]],OfficePlan[#Headers],0))-INDEX(OfficeActual[],MATCH(INDEX(OfficeVariances[],ROW()-ROW(OfficeVariances[[#Headers],[Bir]]),1),INDEX(OfficePlan[],,1),0),MATCH(OfficeVariances[[#Headers],[Bir]],OfficeActual[#Headers],0)) -> 0.00 EUR | I11: =INDEX(OfficePlan[],MATCH(INDEX(OfficeVariances[],ROW()-ROW(OfficeVariances[[#Headers],[Lie]]),1),INDEX(OfficePlan[],,1),0),MATCH(OfficeVariances[[#Headers],[Lie]],OfficePlan[#Headers],0))-INDEX(OfficeActual[],MATCH(INDEX(OfficeVariances[],ROW()-ROW(OfficeVariances[[#Headers],[Lie]]),1),INDEX(OfficePlan[],,1),0),MATCH(OfficeVariances[[#Headers],[Lie]],OfficeActual[#Headers],0)) -> 9,800.00 EUR | J11: =INDEX(OfficePlan[],MATCH(INDEX(OfficeVariances[],ROW()-ROW(OfficeVariances[[#Headers],[Rgp]]),1),INDEX(OfficePlan[],,1),0),MATCH(OfficeVariances[[#Headers],[Rgp]],OfficePlan[#Headers],0))-INDEX(OfficeActual[],MATCH(INDEX(OfficeVariances[],ROW()-ROW(OfficeVariances[[#Headers],[Rgp]]),1),INDEX(OfficePlan[],,1),0),MATCH(OfficeVariances[[#Headers],[Rgp]],OfficeActual[#Headers],0)) -> 9,800.00 EUR | K11: =INDEX(OfficePlan[],MATCH(INDEX(OfficeVariances[],ROW()-ROW(OfficeVariances[[#Headers],[Rgs]]),1),INDEX(OfficePlan[],,1),0),MATCH(OfficeVariances[[#Headers],[Rgs]],OfficePlan[#Headers],0))-INDEX(OfficeActual[],MATCH(INDEX(OfficeVariances[],ROW()-ROW(OfficeVariances[[#Headers],[Rgs]]),1),INDEX(OfficePlan[],,1),0),MATCH(OfficeVariances[[#Headers],[Rgs]],OfficeActual[#Headers],0)) -> 9,800.00 EUR | L11: =INDEX(OfficePlan[],MATCH(INDEX(OfficeVariances[],ROW()-ROW(OfficeVariances[[#Headers],[Spl]]),1),INDEX(OfficePlan[],,1),0),MATCH(OfficeVariances[[#Headers],[Spl]],OfficePlan[#Headers],0))-INDEX(OfficeActual[],MATCH(INDEX(OfficeVariances[],ROW()-ROW(OfficeVariances[[#Headers],[Spl]]),1),INDEX(OfficePlan[],,1),0),MATCH(OfficeVariances[[#Headers],[Spl]],OfficeActual[#Headers],0)) -> 9,800.00 EUR | M11: =INDEX(OfficePlan[],MATCH(INDEX(OfficeVariances[],ROW()-ROW(OfficeVariances[[#Headers],[Lap]]),1),INDEX(OfficePlan[],,1),0),MATCH(OfficeVariances[[#Headers],[Lap]],OfficePlan[#Headers],0))-INDEX(OfficeActual[],MATCH(INDEX(OfficeVariances[],ROW()-ROW(OfficeVariances[[#Headers],[Lap]]),1),INDEX(OfficePlan[],,1),0),MATCH(OfficeVariances[[#Headers],[Lap]],OfficeActual[#Headers],0)) -> 9,800.00 EUR | N11: =INDEX(OfficePlan[],MATCH(INDEX(OfficeVariances[],ROW()-ROW(OfficeVariances[[#Headers],[Grd]]),1),INDEX(OfficePlan[],,1),0),MATCH(OfficeVariances[[#Headers],[Grd]],OfficePlan[#Headers],0))-INDEX(OfficeActual[],MATCH(INDEX(OfficeVariances[],ROW()-ROW(OfficeVariances[[#Headers],[Grd]]),1),INDEX(OfficePlan[],,1),0),MATCH(OfficeVariances[[#Headers],[Grd]],OfficeActual[#Headers],0)) -> 9,800.00 EUR | O11: =SUM(OfficeVariances[[#This Row],[Sau]:[Grd]]) -> 58,800.00 EUR
B12: Dujos | C12: =INDEX(OfficePlan[],MATCH(INDEX(OfficeVariances[],ROW()-ROW(OfficeVariances[[#Headers],[Sau]]),1),INDEX(OfficePlan[],,1),0),MATCH(OfficeVariances[[#Headers],[Sau]],OfficePlan[#Headers],0))-INDEX(OfficeActual[],MATCH(INDEX(OfficeVariances[],ROW()-ROW(OfficeVariances[[#Headers],[Sau]]),1),INDEX(OfficePlan[],,1),0),MATCH(OfficeVariances[[#Headers],[Sau]],OfficeActual[#Headers],0)) -> -4.00 EUR | D12: =INDEX(OfficePlan[],MATCH(INDEX(OfficeVariances[],ROW()-ROW(OfficeVariances[[#Headers],[Vas]]),1),INDEX(OfficePlan[],,1),0),MATCH(OfficeVariances[[#Headers],[Vas]],OfficePlan[#Headers],0))-INDEX(OfficeActual[],MATCH(INDEX(OfficeVariances[],ROW()-ROW(OfficeVariances[[#Headers],[Vas]]),1),INDEX(OfficePlan[],,1),0),MATCH(OfficeVariances[[#Headers],[Vas]],OfficeActual[#Headers],0)) -> -30.00 EUR | E12: =INDEX(OfficePlan[],MATCH(INDEX(OfficeVariances[],ROW()-ROW(OfficeVariances[[#Headers],[Kov]]),1),INDEX(OfficePlan[],,1),0),MATCH(OfficeVariances[[#Headers],[Kov]],OfficePlan[#Headers],0))-INDEX(OfficeActual[],MATCH(INDEX(OfficeVariances[],ROW()-ROW(OfficeVariances[[#Headers],[Kov]]),1),INDEX(OfficePlan[],,1),0),MATCH(OfficeVariances[[#Headers],[Kov]],OfficeActual[#Headers],0)) -> 15.00 EUR | F12: =INDEX(OfficePlan[],MATCH(INDEX(OfficeVariances[],ROW()-ROW(OfficeVariances[[#Headers],[Bal]]),1),INDEX(OfficePlan[],,1),0),MATCH(OfficeVariances[[#Headers],[Bal]],OfficePlan[#Headers],0))-INDEX(OfficeActual[],MATCH(INDEX(OfficeVariances[],ROW()-ROW(OfficeVariances[[#Headers],[Bal]]),1),INDEX(OfficePlan[],,1),0),MATCH(OfficeVariances[[#Headers],[Bal]],OfficeActual[#Headers],0)) -> -130.00 EUR | G12: =INDEX(OfficePlan[],MATCH(INDEX(OfficeVariances[],ROW()-ROW(OfficeVariances[[#Headers],[Geg]]),1),INDEX(OfficePlan[],,1),0),MATCH(OfficeVariances[[#Headers],[Geg]],OfficePlan[#Headers],0))-INDEX(OfficeActual[],MATCH(INDEX(OfficeVariances[],ROW()-ROW(OfficeVariances[[#Headers],[Geg]]),1),INDEX(OfficePlan[],,1),0),MATCH(OfficeVariances[[#Headers],[Geg]],OfficeActual[#Headers],0)) -> 13.00 EUR | H12: =INDEX(OfficePlan[],MATCH(INDEX(OfficeVariances[],ROW()-ROW(OfficeVariances[[#Headers],[Bir]]),1),INDEX(OfficePlan[],,1),0),MATCH(OfficeVariances[[#Headers],[Bir]],OfficePlan[#Headers],0))-INDEX(OfficeActual[],MATCH(INDEX(OfficeVariances[],ROW()-ROW(OfficeVariances[[#Headers],[Bir]]),1),INDEX(OfficePlan[],,1),0),MATCH(OfficeVariances[[#Headers],[Bir]],OfficeActual[#Headers],0)) -> 12.00 EUR | I12: =INDEX(OfficePlan[],MATCH(INDEX(OfficeVariances[],ROW()-ROW(OfficeVariances[[#Headers],[Lie]]),1),INDEX(OfficePlan[],,1),0),MATCH(OfficeVariances[[#Headers],[Lie]],OfficePlan[#Headers],0))-INDEX(OfficeActual[],MATCH(INDEX(OfficeVariances[],ROW()-ROW(OfficeVariances[[#Headers],[Lie]]),1),INDEX(OfficePlan[],,1),0),MATCH(OfficeVariances[[#Headers],[Lie]],OfficeActual[#Headers],0)) -> 100.00 EUR | J12: =INDEX(OfficePlan[],MATCH(INDEX(OfficeVariances[],ROW()-ROW(OfficeVariances[[#Headers],[Rgp]]),1),INDEX(OfficePlan[],,1),0),MATCH(OfficeVariances[[#Headers],[Rgp]],OfficePlan[#Headers],0))-INDEX(OfficeActual[],MATCH(INDEX(OfficeVariances[],ROW()-ROW(OfficeVariances[[#Headers],[Rgp]]),1),INDEX(OfficePlan[],,1),0),MATCH(OfficeVariances[[#Headers],[Rgp]],OfficeActual[#Headers],0)) -> 100.00 EUR | K12: =INDEX(OfficePlan[],MATCH(INDEX(OfficeVariances[],ROW()-ROW(OfficeVariances[[#Headers],[Rgs]]),1),INDEX(OfficePlan[],,1),0),MATCH(OfficeVariances[[#Headers],[Rgs]],OfficePlan[#Headers],0))-INDEX(OfficeActual[],MATCH(INDEX(OfficeVariances[],ROW()-ROW(OfficeVariances[[#Headers],[Rgs]]),1),INDEX(OfficePlan[],,1),0),MATCH(OfficeVariances[[#Headers],[Rgs]],OfficeActual[#Headers],0)) -> 100.00 EUR | L12: =INDEX(OfficePlan[],MATCH(INDEX(OfficeVariances[],ROW()-ROW(OfficeVariances[[#Headers],[Spl]]),1),INDEX(OfficePlan[],,1),0),MATCH(OfficeVariances[[#Headers],[Spl]],OfficePlan[#Headers],0))-INDEX(OfficeActual[],MATCH(INDEX(OfficeVariances[],ROW()-ROW(OfficeVariances[[#Headers],[Spl]]),1),INDEX(OfficePlan[],,1),0),MATCH(OfficeVariances[[#Headers],[Spl]],OfficeActual[#Headers],0)) -> 100.00 EUR | M12: =INDEX(OfficePlan[],MATCH(INDEX(OfficeVariances[],ROW()-ROW(OfficeVariances[[#Headers],[Lap]]),1),INDEX(OfficePlan[],,1),0),MATCH(OfficeVariances[[#Headers],[Lap]],OfficePlan[#Headers],0))-INDEX(OfficeActual[],MATCH(INDEX(OfficeVariances[],ROW()-ROW(OfficeVariances[[#Headers],[Lap]]),1),INDEX(OfficePlan[],,1),0),MATCH(OfficeVariances[[#Headers],[Lap]],OfficeActual[#Headers],0)) -> 400.00 EUR | N12: =INDEX(OfficePlan[],MATCH(INDEX(OfficeVariances[],ROW()-ROW(OfficeVariances[[#Headers],[Grd]]),1),INDEX(OfficePlan[],,1),0),MATCH(OfficeVariances[[#Headers],[Grd]],OfficePlan[#Headers],0))-INDEX(OfficeActual[],MATCH(INDEX(OfficeVariances[],ROW()-ROW(OfficeVariances[[#Headers],[Grd]]),1),INDEX(OfficePlan[],,1),0),MATCH(OfficeVariances[[#Headers],[Grd]],OfficeActual[#Headers],0)) -> 400.00 EUR | O12: =SUM(OfficeVariances[[#This Row],[Sau]:[Grd]]) -> 1,076.00 EUR
B13: Elektra | C13: =INDEX(OfficePlan[],MATCH(INDEX(OfficeVariances[],ROW()-ROW(OfficeVariances[[#Headers],[Sau]]),1),INDEX(OfficePlan[],,1),0),MATCH(OfficeVariances[[#Headers],[Sau]],OfficePlan[#Headers],0))-INDEX(OfficeActual[],MATCH(INDEX(OfficeVariances[],ROW()-ROW(OfficeVariances[[#Headers],[Sau]]),1),INDEX(OfficePlan[],,1),0),MATCH(OfficeVariances[[#Headers],[Sau]],OfficeActual[#Headers],0)) -> 12.00 EUR | D13: =INDEX(OfficePlan[],MATCH(INDEX(OfficeVariances[],ROW()-ROW(OfficeVariances[[#Headers],[Vas]]),1),INDEX(OfficePlan[],,1),0),MATCH(OfficeVariances[[#Headers],[Vas]],OfficePlan[#Headers],0))-INDEX(OfficeActual[],MATCH(INDEX(OfficeVariances[],ROW()-ROW(OfficeVariances[[#Headers],[Vas]]),1),INDEX(OfficePlan[],,1),0),MATCH(OfficeVariances[[#Headers],[Vas]],OfficeActual[#Headers],0)) -> 22.00 EUR | E13: =INDEX(OfficePlan[],MATCH(INDEX(OfficeVariances[],ROW()-ROW(OfficeVariances[[#Headers],[Kov]]),1),INDEX(OfficePlan[],,1),0),MATCH(OfficeVariances[[#Headers],[Kov]],OfficePlan[#Headers],0))-INDEX(OfficeActual[],MATCH(INDEX(OfficeVariances[],ROW()-ROW(OfficeVariances[[#Headers],[Kov]]),1),INDEX(OfficePlan[],,1),0),MATCH(OfficeVariances[[#Headers],[Kov]],OfficeActual[#Headers],0)) -> 32.00 EUR | F13: =INDEX(OfficePlan[],MATCH(INDEX(OfficeVariances[],ROW()-ROW(OfficeVariances[[#Headers],[Bal]]),1),INDEX(OfficePlan[],,1),0),MATCH(OfficeVariances[[#Headers],[Bal]],OfficePlan[#Headers],0))-INDEX(OfficeActual[],MATCH(INDEX(OfficeVariances[],ROW()-ROW(OfficeVariances[[#Headers],[Bal]]),1),INDEX(OfficePlan[],,1),0),MATCH(OfficeVariances[[#Headers],[Bal]],OfficeActual[#Headers],0)) -> 1.00 EUR | G13: =INDEX(OfficePlan[],MATCH(INDEX(OfficeVariances[],ROW()-ROW(OfficeVariances[[#Headers],[Geg]]),1),INDEX(OfficePlan[],,1),0),MATCH(OfficeVariances[[#Headers],[Geg]],OfficePlan[#Headers],0))-INDEX(OfficeActual[],MATCH(INDEX(OfficeVariances[],ROW()-ROW(OfficeVariances[[#Headers],[Geg]]),1),INDEX(OfficePlan[],,1),0),MATCH(OfficeVariances[[#Headers],[Geg]],OfficeActual[#Headers],0)) -> -6.00 EUR | H13: =INDEX(OfficePlan[],MATCH(INDEX(OfficeVariances[],ROW()-ROW(OfficeVariances[[#Headers],[Bir]]),1),INDEX(OfficePlan[],,1),0),MATCH(OfficeVariances[[#Headers],[Bir]],OfficePlan[#Headers],0))-INDEX(OfficeActual[],MATCH(INDEX(OfficeVariances[],ROW()-ROW(OfficeVariances[[#Headers],[Bir]]),1),INDEX(OfficePlan[],,1),0),MATCH(OfficeVariances[[#Headers],[Bir]],OfficeActual[#Headers],0)) -> 10.00 EUR | I13: =INDEX(OfficePlan[],MATCH(INDEX(OfficeVariances[],ROW()-ROW(OfficeVariances[[#Headers],[Lie]]),1),INDEX(OfficePlan[],,1),0),MATCH(OfficeVariances[[#Headers],[Lie]],OfficePlan[#Headers],0))-INDEX(OfficeActual[],MATCH(INDEX(OfficeVariances[],ROW()-ROW(OfficeVariances[[#Headers],[Lie]]),1),INDEX(OfficePlan[],,1),0),MATCH(OfficeVariances[[#Headers],[Lie]],OfficeActual[#Headers],0)) -> 300.00 EUR | J13: =INDEX(OfficePlan[],MATCH(INDEX(OfficeVariances[],ROW()-ROW(OfficeVariances[[#Headers],[Rgp]]),1),INDEX(OfficePlan[],,1),0),MATCH(OfficeVariances[[#Headers],[Rgp]],OfficePlan[#Headers],0))-INDEX(OfficeActual[],MATCH(INDEX(OfficeVariances[],ROW()-ROW(OfficeVariances[[#Headers],[Rgp]]),1),INDEX(OfficePlan[],,1),0),MATCH(OfficeVariances[[#Headers],[Rgp]],OfficeActual[#Headers],0)) -> 300.00 EUR | K13: =INDEX(OfficePlan[],MATCH(INDEX(OfficeVariances[],ROW()-ROW(OfficeVariances[[#Headers],[Rgs]]),1),INDEX(OfficePlan[],,1),0),MATCH(OfficeVariances[[#Headers],[Rgs]],OfficePlan[#Headers],0))-INDEX(OfficeActual[],MATCH(INDEX(OfficeVariances[],ROW()-ROW(OfficeVariances[[#Headers],[Rgs]]),1),INDEX(OfficePlan[],,1),0),MATCH(OfficeVariances[[#Headers],[Rgs]],OfficeActual[#Headers],0)) -> 300.00 EUR | L13: =INDEX(OfficePlan[],MATCH(INDEX(OfficeVariances[],ROW()-ROW(OfficeVariances[[#Headers],[Spl]]),1),INDEX(OfficePlan[],,1),0),MATCH(OfficeVariances[[#Headers],[Spl]],OfficePlan[#Headers],0))-INDEX(OfficeActual[],MATCH(INDEX(OfficeVariances[],ROW()-ROW(OfficeVariances[[#Headers],[Spl]]),1),INDEX(OfficePlan[],,1),0),MATCH(OfficeVariances[[#Headers],[Spl]],OfficeActual[#Headers],0)) -> 300.00 EUR | M13: =INDEX(OfficePlan[],MATCH(INDEX(OfficeVariances[],ROW()-ROW(OfficeVariances[[#Headers],[Lap]]),1),INDEX(OfficePlan[],,1),0),MATCH(OfficeVariances[[#Headers],[Lap]],OfficePlan[#Headers],0))-INDEX(OfficeActual[],MATCH(INDEX(OfficeVariances[],ROW()-ROW(OfficeVariances[[#Headers],[Lap]]),1),INDEX(OfficePlan[],,1),0),MATCH(OfficeVariances[[#Headers],[Lap]],OfficeActual[#Headers],0)) -> 300.00 EUR | N13: =INDEX(OfficePlan[],MATCH(INDEX(OfficeVariances[],ROW()-ROW(OfficeVariances[[#Headers],[Grd]]),1),INDEX(OfficePlan[],,1),0),MATCH(OfficeVariances[[#Headers],[Grd]],OfficePlan[#Headers],0))-INDEX(OfficeActual[],MATCH(INDEX(OfficeVariances[],ROW()-ROW(OfficeVariances[[#Headers],[Grd]]),1),INDEX(OfficePlan[],,1),0),MATCH(OfficeVariances[[#Headers],[Grd]],OfficeActual[#Headers],0)) -> 300.00 EUR | O13: =SUM(OfficeVariances[[#This Row],[Sau]:[Grd]]) -> 1,871.00 EUR
B14: Vanduo | C14: =INDEX(OfficePlan[],MATCH(INDEX(OfficeVariances[],ROW()-ROW(OfficeVariances[[#Headers],[Sau]]),1),INDEX(OfficePlan[],,1),0),MATCH(OfficeVariances[[#Headers],[Sau]],OfficePlan[#Headers],0))-INDEX(OfficeActual[],MATCH(INDEX(OfficeVariances[],ROW()-ROW(OfficeVariances[[#Headers],[Sau]]),1),INDEX(OfficePlan[],,1),0),MATCH(OfficeVariances[[#Headers],[Sau]],OfficeActual[#Headers],0)) -> 5.00 EUR | D14: =INDEX(OfficePlan[],MATCH(INDEX(OfficeVariances[],ROW()-ROW(OfficeVariances[[#Headers],[Vas]]),1),INDEX(OfficePlan[],,1),0),MATCH(OfficeVariances[[#Headers],[Vas]],OfficePlan[#Headers],0))-INDEX(OfficeActual[],MATCH(INDEX(OfficeVariances[],ROW()-ROW(OfficeVariances[[#Headers],[Vas]]),1),INDEX(OfficePlan[],,1),0),MATCH(OfficeVariances[[#Headers],[Vas]],OfficeActual[#Headers],0)) -> 7.00 EUR | E14: =INDEX(OfficePlan[],MATCH(INDEX(OfficeVariances[],ROW()-ROW(OfficeVariances[[#Headers],[Kov]]),1),INDEX(OfficePlan[],,1),0),MATCH(OfficeVariances[[#Headers],[Kov]],OfficePlan[#Headers],0))-INDEX(OfficeActual[],MATCH(INDEX(OfficeVariances[],ROW()-ROW(OfficeVariances[[#Headers],[Kov]]),1),INDEX(OfficePlan[],,1),0),MATCH(OfficeVariances[[#Headers],[Kov]],OfficeActual[#Headers],0)) -> 6.00 EUR | F14: =INDEX(OfficePlan[],MATCH(INDEX(OfficeVariances[],ROW()-ROW(OfficeVariances[[#Headers],[Bal]]),1),INDEX(OfficePlan[],,1),0),MATCH(OfficeVariances[[#Headers],[Bal]],OfficePlan[#Headers],0))-INDEX(OfficeActual[],MATCH(INDEX(OfficeVariances[],ROW()-ROW(OfficeVariances[[#Headers],[Bal]]),1),INDEX(OfficePlan[],,1),0),MATCH(OfficeVariances[[#Headers],[Bal]],OfficeActual[#Headers],0)) -> 4.00 EUR | G14: =INDEX(OfficePlan[],MATCH(INDEX(OfficeVariances[],ROW()-ROW(OfficeVariances[[#Headers],[Geg]]),1),INDEX(OfficePlan[],,1),0),MATCH(OfficeVariances[[#Headers],[Geg]],OfficePlan[#Headers],0))-INDEX(OfficeActual[],MATCH(INDEX(OfficeVariances[],ROW()-ROW(OfficeVariances[[#Headers],[Geg]]),1),INDEX(OfficePlan[],,1),0),MATCH(OfficeVariances[[#Headers],[Geg]],OfficeActual[#Headers],0)) -> 6.00 EUR | H14: =INDEX(OfficePlan[],MATCH(INDEX(OfficeVariances[],ROW()-ROW(OfficeVariances[[#Headers],[Bir]]),1),INDEX(OfficePlan[],,1),0),MATCH(OfficeVariances[[#Headers],[Bir]],OfficePlan[#Headers],0))-INDEX(OfficeActual[],MATCH(INDEX(OfficeVariances[],ROW()-ROW(OfficeVariances[[#Headers],[Bir]]),1),INDEX(OfficePlan[],,1),0),MATCH(OfficeVariances[[#Headers],[Bir]],OfficeActual[#Headers],0)) -> 4.00 EUR | I14: =INDEX(OfficePlan[],MATCH(INDEX(OfficeVariances[],ROW()-ROW(OfficeVariances[[#Headers],[Lie]]),1),INDEX(OfficePlan[],,1),0),MATCH(OfficeVariances[[#Headers],[Lie]],OfficePlan[#Headers],0))-INDEX(OfficeActual[],MATCH(INDEX(OfficeVariances[],ROW()-ROW(OfficeVariances[[#Headers],[Lie]]),1),INDEX(OfficePlan[],,1),0),MATCH(OfficeVariances[[#Headers],[Lie]],OfficeActual[#Headers],0)) -> 40.00 EUR | J14: =INDEX(OfficePlan[],MATCH(INDEX(OfficeVariances[],ROW()-ROW(OfficeVariances[[#Headers],[Rgp]]),1),INDEX(OfficePlan[],,1),0),MATCH(OfficeVariances[[#Headers],[Rgp]],OfficePlan[#Headers],0))-INDEX(OfficeActual[],MATCH(INDEX(OfficeVariances[],ROW()-ROW(OfficeVariances[[#Headers],[Rgp]]),1),INDEX(OfficePlan[],,1),0),MATCH(OfficeVariances[[#Headers],[Rgp]],OfficeActual[#Headers],0)) -> 40.00 EUR | K14: =INDEX(OfficePlan[],MATCH(INDEX(OfficeVariances[],ROW()-ROW(OfficeVariances[[#Headers],[Rgs]]),1),INDEX(OfficePlan[],,1),0),MATCH(OfficeVariances[[#Headers],[Rgs]],OfficePlan[#Headers],0))-INDEX(OfficeActual[],MATCH(INDEX(OfficeVariances[],ROW()-ROW(OfficeVariances[[#Headers],[Rgs]]),1),INDEX(OfficePlan[],,1),0),MATCH(OfficeVariances[[#Headers],[Rgs]],OfficeActual[#Headers],0)) -> 40.00 EUR | L14: =INDEX(OfficePlan[],MATCH(INDEX(OfficeVariances[],ROW()-ROW(OfficeVariances[[#Headers],[Spl]]),1),INDEX(OfficePlan[],,1),0),MATCH(OfficeVariances[[#Headers],[Spl]],OfficePlan[#Headers],0))-INDEX(OfficeActual[],MATCH(INDEX(OfficeVariances[],ROW()-ROW(OfficeVariances[[#Headers],[Spl]]),1),INDEX(OfficePlan[],,1),0),MATCH(OfficeVariances[[#Headers],[Spl]],OfficeActual[#Headers],0)) -> 40.00 EUR | M14: =INDEX(OfficePlan[],MATCH(INDEX(OfficeVariances[],ROW()-ROW(OfficeVariances[[#Headers],[Lap]]),1),INDEX(OfficePlan[],,1),0),MATCH(OfficeVariances[[#Headers],[Lap]],OfficePlan[#Headers],0))-INDEX(OfficeActual[],MATCH(INDEX(OfficeVariances[],ROW()-ROW(OfficeVariances[[#Headers],[Lap]]),1),INDEX(OfficePlan[],,1),0),MATCH(OfficeVariances[[#Headers],[Lap]],OfficeActual[#Headers],0)) -> 40.00 EUR | N14: =INDEX(OfficePlan[],MATCH(INDEX(OfficeVariances[],ROW()-ROW(OfficeVariances[[#Headers],[Grd]]),1),INDEX(OfficePlan[],,1),0),MATCH(OfficeVariances[[#Headers],[Grd]],OfficePlan[#Headers],0))-INDEX(OfficeActual[],MATCH(INDEX(OfficeVariances[],ROW()-ROW(OfficeVariances[[#Headers],[Grd]]),1),INDEX(OfficePlan[],,1),0),MATCH(OfficeVariances[[#Headers],[Grd]],OfficeActual[#Headers],0)) -> 40.00 EUR | O14: =SUM(OfficeVariances[[#This Row],[Sau]:[Grd]]) -> 272.00 EUR
B15: Telefonas | C15: =INDEX(OfficePlan[],MATCH(INDEX(OfficeVariances[],ROW()-ROW(OfficeVariances[[#Headers],[Sau]]),1),INDEX(OfficePlan[],,1),0),MATCH(OfficeVariances[[#Headers],[Sau]],OfficePlan[#Headers],0))-INDEX(OfficeActual[],MATCH(INDEX(OfficeVariances[],ROW()-ROW(OfficeVariances[[#Headers],[Sau]]),1),INDEX(OfficePlan[],,1),0),MATCH(OfficeVariances[[#Headers],[Sau]],OfficeActual[#Headers],0)) -> 26.00 EUR | D15: =INDEX(OfficePlan[],MATCH(INDEX(OfficeVariances[],ROW()-ROW(OfficeVariances[[#Headers],[Vas]]),1),INDEX(OfficePlan[],,1),0),MATCH(OfficeVariances[[#Headers],[Vas]],OfficePlan[#Headers],0))-INDEX(OfficeActual[],MATCH(INDEX(OfficeVariances[],ROW()-ROW(OfficeVariances[[#Headers],[Vas]]),1),INDEX(OfficePlan[],,1),0),MATCH(OfficeVariances[[#Headers],[Vas]],OfficeActual[#Headers],0)) -> 15.00 EUR | E15: =INDEX(OfficePlan[],MATCH(INDEX(OfficeVariances[],ROW()-ROW(OfficeVariances[[#Headers],[Kov]]),1),INDEX(OfficePlan[],,1),0),MATCH(OfficeVariances[[#Headers],[Kov]],OfficePlan[#Headers],0))-INDEX(OfficeActual[],MATCH(INDEX(OfficeVariances[],ROW()-ROW(OfficeVariances[[#Headers],[Kov]]),1),INDEX(OfficePlan[],,1),0),MATCH(OfficeVariances[[#Headers],[Kov]],OfficeActual[#Headers],0)) -> -15.00 EUR | F15: =INDEX(OfficePlan[],MATCH(INDEX(OfficeVariances[],ROW()-ROW(OfficeVariances[[#Headers],[Bal]]),1),INDEX(OfficePlan[],,1),0),MATCH(OfficeVariances[[#Headers],[Bal]],OfficePlan[#Headers],0))-INDEX(OfficeActual[],MATCH(INDEX(OfficeVariances[],ROW()-ROW(OfficeVariances[[#Headers],[Bal]]),1),INDEX(OfficePlan[],,1),0),MATCH(OfficeVariances[[#Headers],[Bal]],OfficeActual[#Headers],0)) -> 5.00 EUR | G15: =INDEX(OfficePlan[],MATCH(INDEX(OfficeVariances[],ROW()-ROW(OfficeVariances[[#Headers],[Geg]]),1),INDEX(OfficePlan[],,1),0),MATCH(OfficeVariances[[#Headers],[Geg]],OfficePlan[#Headers],0))-INDEX(OfficeActual[],MATCH(INDEX(OfficeVariances[],ROW()-ROW(OfficeVariances[[#Headers],[Geg]]),1),INDEX(OfficePlan[],,1),0),MATCH(OfficeVariances[[#Headers],[Geg]],OfficeActual[#Headers],0)) -> 5.00 EUR | H15: =INDEX(OfficePlan[],MATCH(INDEX(OfficeVariances[],ROW()-ROW(OfficeVariances[[#Headers],[Bir]]),1),INDEX(OfficePlan[],,1),0),MATCH(OfficeVariances[[#Headers],[Bir]],OfficePlan[#Headers],0))-INDEX(OfficeActual[],MATCH(INDEX(OfficeVariances[],ROW()-ROW(OfficeVariances[[#Headers],[Bir]]),1),INDEX(OfficePlan[],,1),0),MATCH(OfficeVariances[[#Headers],[Bir]],OfficeActual[#Headers],0)) -> 30.00 EUR | I15: =INDEX(OfficePlan[],MATCH(INDEX(OfficeVariances[],ROW()-ROW(OfficeVariances[[#Headers],[Lie]]),1),INDEX(OfficePlan[],,1),0),MATCH(OfficeVariances[[#Headers],[Lie]],OfficePlan[#Headers],0))-INDEX(OfficeActual[],MATCH(INDEX(OfficeVariances[],ROW()-ROW(OfficeVariances[[#Headers],[Lie]]),1),INDEX(OfficePlan[],,1),0),MATCH(OfficeVariances[[#Headers],[Lie]],OfficeActual[#Headers],0)) -> 250.00 EUR | J15: =INDEX(OfficePlan[],MATCH(INDEX(OfficeVariances[],ROW()-ROW(OfficeVariances[[#Headers],[Rgp]]),1),INDEX(OfficePlan[],,1),0),MATCH(OfficeVariances[[#Headers],[Rgp]],OfficePlan[#Headers],0))-INDEX(OfficeActual[],MATCH(INDEX(OfficeVariances[],ROW()-ROW(OfficeVariances[[#Headers],[Rgp]]),1),INDEX(OfficePlan[],,1),0),MATCH(OfficeVariances[[#Headers],[Rgp]],OfficeActual[#Headers],0)) -> 250.00 EUR | K15: =INDEX(OfficePlan[],MATCH(INDEX(OfficeVariances[],ROW()-ROW(OfficeVariances[[#Headers],[Rgs]]),1),INDEX(OfficePlan[],,1),0),MATCH(OfficeVariances[[#Headers],[Rgs]],OfficePlan[#Headers],0))-INDEX(OfficeActual[],MATCH(INDEX(OfficeVariances[],ROW()-ROW(OfficeVariances[[#Headers],[Rgs]]),1),INDEX(OfficePlan[],,1),0),MATCH(OfficeVariances[[#Headers],[Rgs]],OfficeActual[#Headers],0)) -> 250.00 EUR | L15: =INDEX(OfficePlan[],MATCH(INDEX(OfficeVariances[],ROW()-ROW(OfficeVariances[[#Headers],[Spl]]),1),INDEX(OfficePlan[],,1),0),MATCH(OfficeVariances[[#Headers],[Spl]],OfficePlan[#Headers],0))-INDEX(OfficeActual[],MATCH(INDEX(OfficeVariances[],ROW()-ROW(OfficeVariances[[#Headers],[Spl]]),1),INDEX(OfficePlan[],,1),0),MATCH(OfficeVariances[[#Headers],[Spl]],OfficeActual[#Headers],0)) -> 250.00 EUR | M15: =INDEX(OfficePlan[],MATCH(INDEX(OfficeVariances[],ROW()-ROW(OfficeVariances[[#Headers],[Lap]]),1),INDEX(OfficePlan[],,1),0),MATCH(OfficeVariances[[#Headers],[Lap]],OfficePlan[#Headers],0))-INDEX(OfficeActual[],MATCH(INDEX(OfficeVariances[],ROW()-ROW(OfficeVariances[[#Headers],[Lap]]),1),INDEX(OfficePlan[],,1),0),MATCH(OfficeVariances[[#Headers],[Lap]],OfficeActual[#Headers],0)) -> 250.00 EUR | N15: =INDEX(OfficePlan[],MATCH(INDEX(OfficeVariances[],ROW()-ROW(OfficeVariances[[#Headers],[Grd]]),1),INDEX(OfficePlan[],,1),0),MATCH(OfficeVariances[[#Headers],[Grd]],OfficePlan[#Headers],0))-INDEX(OfficeActual[],MATCH(INDEX(OfficeVariances[],ROW()-ROW(OfficeVariances[[#Headers],[Grd]]),1),INDEX(OfficePlan[],,1),0),MATCH(OfficeVariances[[#Headers],[Grd]],OfficeActual[#Headers],0)) -> 250.00 EUR | O15: =SUM(OfficeVariances[[#This Row],[Sau]:[Grd]]) -> 1,566.00 EUR
B16: Interneto prieiga | C16: =INDEX(OfficePlan[],MATCH(INDEX(OfficeVariances[],ROW()-ROW(OfficeVariances[[#Headers],[Sau]]),1),INDEX(OfficePlan[],,1),0),MATCH(OfficeVariances[[#Headers],[Sau]],OfficePlan[#Headers],0))-INDEX(OfficeActual[],MATCH(INDEX(OfficeVariances[],ROW()-ROW(OfficeVariances[[#Headers],[Sau]]),1),INDEX(OfficePlan[],,1),0),MATCH(OfficeVariances[[#Headers],[Sau]],OfficeActual[#Headers],0)) -> 0.00 EUR | D16: =INDEX(OfficePlan[],MATCH(INDEX(OfficeVariances[],ROW()-ROW(OfficeVariances[[#Headers],[Vas]]),1),INDEX(OfficePlan[],,1),0),MATCH(OfficeVariances[[#Headers],[Vas]],OfficePlan[#Headers],0))-INDEX(OfficeActual[],MATCH(INDEX(OfficeVariances[],ROW()-ROW(OfficeVariances[[#Headers],[Vas]]),1),INDEX(OfficePlan[],,1),0),MATCH(OfficeVariances[[#Headers],[Vas]],OfficeActual[#Headers],0)) -> 0.00 EUR | E16: =INDEX(OfficePlan[],MATCH(INDEX(OfficeVariances[],ROW()-ROW(OfficeVariances[[#Headers],[Kov]]),1),INDEX(OfficePlan[],,1),0),MATCH(OfficeVariances[[#Headers],[Kov]],OfficePlan[#Headers],0))-INDEX(OfficeActual[],MATCH(INDEX(OfficeVariances[],ROW()-ROW(OfficeVariances[[#Headers],[Kov]]),1),INDEX(OfficePlan[],,1),0),MATCH(OfficeVariances[[#Headers],[Kov]],OfficeActual[#Headers],0)) -> 0.00 EUR | F16: =INDEX(OfficePlan[],MATCH(INDEX(OfficeVariances[],ROW()-ROW(OfficeVariances[[#Headers],[Bal]]),1),INDEX(OfficePlan[],,1),0),MATCH(OfficeVariances[[#Headers],[Bal]],OfficePlan[#Headers],0))-INDEX(OfficeActual[],MATCH(INDEX(OfficeVariances[],ROW()-ROW(OfficeVariances[[#Headers],[Bal]]),1),INDEX(OfficePlan[],,1),0),MATCH(OfficeVariances[[#Headers],[Bal]],OfficeActual[#Headers],0)) -> 0.00 EUR | G16: =INDEX(OfficePlan[],MATCH(INDEX(OfficeVariances[],ROW()-ROW(OfficeVariances[[#Headers],[Geg]]),1),INDEX(OfficePlan[],,1),0),MATCH(OfficeVariances[[#Headers],[Geg]],OfficePlan[#Headers],0))-INDEX(OfficeActual[],MATCH(INDEX(OfficeVariances[],ROW()-ROW(OfficeVariances[[#Headers],[Geg]]),1),INDEX(OfficePlan[],,1),0),MATCH(OfficeVariances[[#Headers],[Geg]],OfficeActual[#Headers],0)) -> 0.00 EUR | H16: =INDEX(OfficePlan[],MATCH(INDEX(OfficeVariances[],ROW()-ROW(OfficeVariances[[#Headers],[Bir]]),1),INDEX(OfficePlan[],,1),0),MATCH(OfficeVariances[[#Headers],[Bir]],OfficePlan[#Headers],0))-INDEX(OfficeActual[],MATCH(INDEX(OfficeVariances[],ROW()-ROW(OfficeVariances[[#Headers],[Bir]]),1),INDEX(OfficePlan[],,1),0),MATCH(OfficeVariances[[#Headers],[Bir]],OfficeActual[#Headers],0)) -> 0.00 EUR | I16: =INDEX(OfficePlan[],MATCH(INDEX(OfficeVariances[],ROW()-ROW(OfficeVariances[[#Headers],[Lie]]),1),INDEX(OfficePlan[],,1),0),MATCH(OfficeVariances[[#Headers],[Lie]],OfficePlan[#Headers],0))-INDEX(OfficeActual[],MATCH(INDEX(OfficeVariances[],ROW()-ROW(OfficeVariances[[#Headers],[Lie]]),1),INDEX(OfficePlan[],,1),0),MATCH(OfficeVariances[[#Headers],[Lie]],OfficeActual[#Headers],0)) -> 180.00 EUR | J16: =INDEX(OfficePlan[],MATCH(INDEX(OfficeVariances[],ROW()-ROW(OfficeVariances[[#Headers],[Rgp]]),1),INDEX(OfficePlan[],,1),0),MATCH(OfficeVariances[[#Headers],[Rgp]],OfficePlan[#Headers],0))-INDEX(OfficeActual[],MATCH(INDEX(OfficeVariances[],ROW()-ROW(OfficeVariances[[#Headers],[Rgp]]),1),INDEX(OfficePlan[],,1),0),MATCH(OfficeVariances[[#Headers],[Rgp]],OfficeActual[#Headers],0)) -> 180.00 EUR | K16: =INDEX(OfficePlan[],MATCH(INDEX(OfficeVariances[],ROW()-ROW(OfficeVariances[[#Headers],[Rgs]]),1),INDEX(OfficePlan[],,1),0),MATCH(OfficeVariances[[#Headers],[Rgs]],OfficePlan[#Headers],0))-INDEX(OfficeActual[],MATCH(INDEX(OfficeVariances[],ROW()-ROW(OfficeVariances[[#Headers],[Rgs]]),1),INDEX(OfficePlan[],,1),0),MATCH(OfficeVariances[[#Headers],[Rgs]],OfficeActual[#Headers],0)) -> 180.00 EUR | L16: =INDEX(OfficePlan[],MATCH(INDEX(OfficeVariances[],ROW()-ROW(OfficeVariances[[#Headers],[Spl]]),1),INDEX(OfficePlan[],,1),0),MATCH(OfficeVariances[[#Headers],[Spl]],OfficePlan[#Headers],0))-INDEX(OfficeActual[],MATCH(INDEX(OfficeVariances[],ROW()-ROW(OfficeVariances[[#Headers],[Spl]]),1),INDEX(OfficePlan[],,1),0),MATCH(OfficeVariances[[#Headers],[Spl]],OfficeActual[#Headers],0)) -> 180.00 EUR | M16: =INDEX(OfficePlan[],MATCH(INDEX(OfficeVariances[],ROW()-ROW(OfficeVariances[[#Headers],[Lap]]),1),INDEX(OfficePlan[],,1),0),MATCH(OfficeVariances[[#Headers],[Lap]],OfficePlan[#Headers],0))-INDEX(OfficeActual[],MATCH(INDEX(OfficeVariances[],ROW()-ROW(OfficeVariances[[#Headers],[Lap]]),1),INDEX(OfficePlan[],,1),0),MATCH(OfficeVariances[[#Headers],[Lap]],OfficeActual[#Headers],0)) -> 180.00 EUR | N16: =INDEX(OfficePlan[],MATCH(INDEX(OfficeVariances[],ROW()-ROW(OfficeVariances[[#Headers],[Grd]]),1),INDEX(OfficePlan[],,1),0),MATCH(OfficeVariances[[#Headers],[Grd]],OfficePlan[#Headers],0))-INDEX(OfficeActual[],MATCH(INDEX(OfficeVariances[],ROW()-ROW(OfficeVariances[[#Headers],[Grd]]),1),INDEX(OfficePlan[],,1),0),MATCH(OfficeVariances[[#Headers],[Grd]],OfficeActual[#Headers],0)) -> 180.00 EUR | O16: =SUM(OfficeVariances[[#This Row],[Sau]:[Grd]]) -> 1,080.00 EUR
B17: Biuro reikmenys | C17: =INDEX(OfficePlan[],MATCH(INDEX(OfficeVariances[],ROW()-ROW(OfficeVariances[[#Headers],[Sau]]),1),INDEX(OfficePlan[],,1),0),MATCH(OfficeVariances[[#Headers],[Sau]],OfficePlan[#Headers],0))-INDEX(OfficeActual[],MATCH(INDEX(OfficeVariances[],ROW()-ROW(OfficeVariances[[#Headers],[Sau]]),1),INDEX(OfficePlan[],,1),0),MATCH(OfficeVariances[[#Headers],[Sau]],OfficeActual[#Headers],0)) -> -56.00 EUR | D17: =INDEX(OfficePlan[],MATCH(INDEX(OfficeVariances[],ROW()-ROW(OfficeVariances[[#Headers],[Vas]]),1),INDEX(OfficePlan[],,1),0),MATCH(OfficeVariances[[#Headers],[Vas]],OfficePlan[#Headers],0))-INDEX(OfficeActual[],MATCH(INDEX(OfficeVariances[],ROW()-ROW(OfficeVariances[[#Headers],[Vas]]),1),INDEX(OfficePlan[],,1),0),MATCH(OfficeVariances[[#Headers],[Vas]],OfficeActual[#Headers],0)) -> 58.00 EUR | E17: =INDEX(OfficePlan[],MATCH(INDEX(OfficeVariances[],ROW()-ROW(OfficeVariances[[#Headers],[Kov]]),1),INDEX(OfficePlan[],,1),0),MATCH(OfficeVariances[[#Headers],[Kov]],OfficePlan[#Headers],0))-INDEX(OfficeActual[],MATCH(INDEX(OfficeVariances[],ROW()-ROW(OfficeVariances[[#Headers],[Kov]]),1),INDEX(OfficePlan[],,1),0),MATCH(OfficeVariances[[#Headers],[Kov]],OfficeActual[#Headers],0)) -> 40.00 EUR | F17: =INDEX(OfficePlan[],MATCH(INDEX(OfficeVariances[],ROW()-ROW(OfficeVariances[[#Headers],[Bal]]),1),INDEX(OfficePlan[],,1),0),MATCH(OfficeVariances[[#Headers],[Bal]],OfficePlan[#Headers],0))-INDEX(OfficeActual[],MATCH(INDEX(OfficeVariances[],ROW()-ROW(OfficeVariances[[#Headers],[Bal]]),1),INDEX(OfficePlan[],,1),0),MATCH(OfficeVariances[[#Headers],[Bal]],OfficeActual[#Headers],0)) -> -21.00 EUR | G17: =INDEX(OfficePlan[],MATCH(INDEX(OfficeVariances[],ROW()-ROW(OfficeVariances[[#Headers],[Geg]]),1),INDEX(OfficePlan[],,1),0),MATCH(OfficeVariances[[#Headers],[Geg]],OfficePlan[#Headers],0))-INDEX(OfficeActual[],MATCH(INDEX(OfficeVariances[],ROW()-ROW(OfficeVariances[[#Headers],[Geg]]),1),INDEX(OfficePlan[],,1),0),MATCH(OfficeVariances[[#Headers],[Geg]],OfficeActual[#Headers],0)) -> -56.00 EUR | H17: =INDEX(OfficePlan[],MATCH(INDEX(OfficeVariances[],ROW()-ROW(OfficeVariances[[#Headers],[Bir]]),1),INDEX(OfficePlan[],,1),0),MATCH(OfficeVariances[[#Headers],[Bir]],OfficePlan[#Headers],0))-INDEX(OfficeActual[],MATCH(INDEX(OfficeVariances[],ROW()-ROW(OfficeVariances[[#Headers],[Bir]]),1),INDEX(OfficePlan[],,1),0),MATCH(OfficeVariances[[#Headers],[Bir]],OfficeActual[#Headers],0)) -> -40.00 EUR | I17: =INDEX(OfficePlan[],MATCH(INDEX(OfficeVariances[],ROW()-ROW(OfficeVariances[[#Headers],[Lie]]),1),INDEX(OfficePlan[],,1),0),MATCH(OfficeVariances[[#Headers],[Lie]],OfficePlan[#Headers],0))-INDEX(OfficeActual[],MATCH(INDEX(OfficeVariances[],ROW()-ROW(OfficeVariances[[#Headers],[Lie]]),1),INDEX(OfficePlan[],,1),0),MATCH(OfficeVariances[[#Headers],[Lie]],OfficeActual[#Headers],0)) -> 200.00 EUR | J17: =INDEX(OfficePlan[],MATCH(INDEX(OfficeVariances[],ROW()-ROW(OfficeVariances[[#Headers],[Rgp]]),1),INDEX(OfficePlan[],,1),0),MATCH(OfficeVariances[[#Headers],[Rgp]],OfficePlan[#Headers],0))-INDEX(OfficeActual[],MATCH(INDEX(OfficeVariances[],ROW()-ROW(OfficeVariances[[#Headers],[Rgp]]),1),INDEX(OfficePlan[],,1),0),MATCH(OfficeVariances[[#Headers],[Rgp]],OfficeActual[#Headers],0)) -> 200.00 EUR | K17: =INDEX(OfficePlan[],MATCH(INDEX(OfficeVariances[],ROW()-ROW(OfficeVariances[[#Headers],[Rgs]]),1),INDEX(OfficePlan[],,1),0),MATCH(OfficeVariances[[#Headers],[Rgs]],OfficePlan[#Headers],0))-INDEX(OfficeActual[],MATCH(INDEX(OfficeVariances[],ROW()-ROW(OfficeVariances[[#Headers],[Rgs]]),1),INDEX(OfficePlan[],,1),0),MATCH(OfficeVariances[[#Headers],[Rgs]],OfficeActual[#Headers],0)) -> 200.00 EUR | L17: =INDEX(OfficePlan[],MATCH(INDEX(OfficeVariances[],ROW()-ROW(OfficeVariances[[#Headers],[Spl]]),1),INDEX(OfficePlan[],,1),0),MATCH(OfficeVariances[[#Headers],[Spl]],OfficePlan[#Headers],0))-INDEX(OfficeActual[],MATCH(INDEX(OfficeVariances[],ROW()-ROW(OfficeVariances[[#Headers],[Spl]]),1),INDEX(OfficePlan[],,1),0),MATCH(OfficeVariances[[#Headers],[Spl]],OfficeActual[#Headers],0)) -> 200.00 EUR | M17: =INDEX(OfficePlan[],MATCH(INDEX(OfficeVariances[],ROW()-ROW(OfficeVariances[[#Headers],[Lap]]),1),INDEX(OfficePlan[],,1),0),MATCH(OfficeVariances[[#Headers],[Lap]],OfficePlan[#Headers],0))-INDEX(OfficeActual[],MATCH(INDEX(OfficeVariances[],ROW()-ROW(OfficeVariances[[#Headers],[Lap]]),1),INDEX(OfficePlan[],,1),0),MATCH(OfficeVariances[[#Headers],[Lap]],OfficeActual[#Headers],0)) -> 200.00 EUR | N17: =INDEX(OfficePlan[],MATCH(INDEX(OfficeVariances[],ROW()-ROW(OfficeVariances[[#Headers],[Grd]]),1),INDEX(OfficePlan[],,1),0),MATCH(OfficeVariances[[#Headers],[Grd]],OfficePlan[#Headers],0))-INDEX(OfficeActual[],MATCH(INDEX(OfficeVariances[],ROW()-ROW(OfficeVariances[[#Headers],[Grd]]),1),INDEX(OfficePlan[],,1),0),MATCH(OfficeVariances[[#Headers],[Grd]],OfficeActual[#Headers],0)) -> 200.00 EUR | O17: =SUM(OfficeVariances[[#This Row],[Sau]:[Grd]]) -> 1,125.00 EUR
B18: Apsauga | C18: =INDEX(OfficePlan[],MATCH(INDEX(OfficeVariances[],ROW()-ROW(OfficeVariances[[#Headers],[Sau]]),1),INDEX(OfficePlan[],,1),0),MATCH(OfficeVariances[[#Headers],[Sau]],OfficePlan[#Headers],0))-INDEX(OfficeActual[],MATCH(INDEX(OfficeVariances[],ROW()-ROW(OfficeVariances[[#Headers],[Sau]]),1),INDEX(OfficePlan[],,1),0),MATCH(OfficeVariances[[#Headers],[Sau]],OfficeActual[#Headers],0)) -> 0.00 EUR | D18: =INDEX(OfficePlan[],MATCH(INDEX(OfficeVariances[],ROW()-ROW(OfficeVariances[[#Headers],[Vas]]),1),INDEX(OfficePlan[],,1),0),MATCH(OfficeVariances[[#Headers],[Vas]],OfficePlan[#Headers],0))-INDEX(OfficeActual[],MATCH(INDEX(OfficeVariances[],ROW()-ROW(OfficeVariances[[#Headers],[Vas]]),1),INDEX(OfficePlan[],,1),0),MATCH(OfficeVariances[[#Headers],[Vas]],OfficeActual[#Headers],0)) -> 0.00 EUR | E18: =INDEX(OfficePlan[],MATCH(INDEX(OfficeVariances[],ROW()-ROW(OfficeVariances[[#Headers],[Kov]]),1),INDEX(OfficePlan[],,1),0),MATCH(OfficeVariances[[#Headers],[Kov]],OfficePlan[#Headers],0))-INDEX(OfficeActual[],MATCH(INDEX(OfficeVariances[],ROW()-ROW(OfficeVariances[[#Headers],[Kov]]),1),INDEX(OfficePlan[],,1),0),MATCH(OfficeVariances[[#Headers],[Kov]],OfficeActual[#Headers],0)) -> 0.00 EUR | F18: =INDEX(OfficePlan[],MATCH(INDEX(OfficeVariances[],ROW()-ROW(OfficeVariances[[#Headers],[Bal]]),1),INDEX(OfficePlan[],,1),0),MATCH(OfficeVariances[[#Headers],[Bal]],OfficePlan[#Headers],0))-INDEX(OfficeActual[],MATCH(INDEX(OfficeVariances[],ROW()-ROW(OfficeVariances[[#Headers],[Bal]]),1),INDEX(OfficePlan[],,1),0),MATCH(OfficeVariances[[#Headers],[Bal]],OfficeActual[#Headers],0)) -> 0.00 EUR | G18: =INDEX(OfficePlan[],MATCH(INDEX(OfficeVariances[],ROW()-ROW(OfficeVariances[[#Headers],[Geg]]),1),INDEX(OfficePlan[],,1),0),MATCH(OfficeVariances[[#Headers],[Geg]],OfficePlan[#Headers],0))-INDEX(OfficeActual[],MATCH(INDEX(OfficeVariances[],ROW()-ROW(OfficeVariances[[#Headers],[Geg]]),1),INDEX(OfficePlan[],,1),0),MATCH(OfficeVariances[[#Headers],[Geg]],OfficeActual[#Headers],0)) -> 0.00 EUR | H18: =INDEX(OfficePlan[],MATCH(INDEX(OfficeVariances[],ROW()-ROW(OfficeVariances[[#Headers],[Bir]]),1),INDEX(OfficePlan[],,1),0),MATCH(OfficeVariances[[#Headers],[Bir]],OfficePlan[#Headers],0))-INDEX(OfficeActual[],MATCH(INDEX(OfficeVariances[],ROW()-ROW(OfficeVariances[[#Headers],[Bir]]),1),INDEX(OfficePlan[],,1),0),MATCH(OfficeVariances[[#Headers],[Bir]],OfficeActual[#Headers],0)) -> 0.00 EUR | I18: =INDEX(OfficePlan[],MATCH(INDEX(OfficeVariances[],ROW()-ROW(OfficeVariances[[#Headers],[Lie]]),1),INDEX(OfficePlan[],,1),0),MATCH(OfficeVariances[[#Headers],[Lie]],OfficePlan[#Headers],0))-INDEX(OfficeActual[],MATCH(INDEX(OfficeVariances[],ROW()-ROW(OfficeVariances[[#Headers],[Lie]]),1),INDEX(OfficePlan[],,1),0),MATCH(OfficeVariances[[#Headers],[Lie]],OfficeActual[#Headers],0)) -> 600.00 EUR | J18: =INDEX(OfficePlan[],MATCH(INDEX(OfficeVariances[],ROW()-ROW(OfficeVariances[[#Headers],[Rgp]]),1),INDEX(OfficePlan[],,1),0),MATCH(OfficeVariances[[#Headers],[Rgp]],OfficePlan[#Headers],0))-INDEX(OfficeActual[],MATCH(INDEX(OfficeVariances[],ROW()-ROW(OfficeVariances[[#Headers],[Rgp]]),1),INDEX(OfficePlan[],,1),0),MATCH(OfficeVariances[[#Headers],[Rgp]],OfficeActual[#Headers],0)) -> 600.00 EUR | K18: =INDEX(OfficePlan[],MATCH(INDEX(OfficeVariances[],ROW()-ROW(OfficeVariances[[#Headers],[Rgs]]),1),INDEX(OfficePlan[],,1),0),MATCH(OfficeVariances[[#Headers],[Rgs]],OfficePlan[#Headers],0))-INDEX(OfficeActual[],MATCH(INDEX(OfficeVariances[],ROW()-ROW(OfficeVariances[[#Headers],[Rgs]]),1),INDEX(OfficePlan[],,1),0),MATCH(OfficeVariances[[#Headers],[Rgs]],OfficeActual[#Headers],0)) -> 600.00 EUR | L18: =INDEX(OfficePlan[],MATCH(INDEX(OfficeVariances[],ROW()-ROW(OfficeVariances[[#Headers],[Spl]]),1),INDEX(OfficePlan[],,1),0),MATCH(OfficeVariances[[#Headers],[Spl]],OfficePlan[#Headers],0))-INDEX(OfficeActual[],MATCH(INDEX(OfficeVariances[],ROW()-ROW(OfficeVariances[[#Headers],[Spl]]),1),INDEX(OfficePlan[],,1),0),MATCH(OfficeVariances[[#Headers],[Spl]],OfficeActual[#Headers],0)) -> 600.00 EUR | M18: =INDEX(OfficePlan[],MATCH(INDEX(OfficeVariances[],ROW()-ROW(OfficeVariances[[#Headers],[Lap]]),1),INDEX(OfficePlan[],,1),0),MATCH(OfficeVariances[[#Headers],[Lap]],OfficePlan[#Headers],0))-INDEX(OfficeActual[],MATCH(INDEX(OfficeVariances[],ROW()-ROW(OfficeVariances[[#Headers],[Lap]]),1),INDEX(OfficePlan[],,1),0),MATCH(OfficeVariances[[#Headers],[Lap]],OfficeActual[#Headers],0)) -> 600.00 EUR | N18: =INDEX(OfficePlan[],MATCH(INDEX(OfficeVariances[],ROW()-ROW(OfficeVariances[[#Headers],[Grd]]),1),INDEX(OfficePlan[],,1),0),MATCH(OfficeVariances[[#Headers],[Grd]],OfficePlan[#Headers],0))-INDEX(OfficeActual[],MATCH(INDEX(OfficeVariances[],ROW()-ROW(OfficeVariances[[#Headers],[Grd]]),1),INDEX(OfficePlan[],,1),0),MATCH(OfficeVariances[[#Headers],[Grd]],OfficeActual[#Headers],0)) -> 600.00 EUR | O18: =SUM(OfficeVariances[[#This Row],[Sau]:[Grd]]) -> 3,600.00 EUR
B19: Tarpinė suma | C19: =SUBTOTAL(109,OfficeVariances[Sau]) -> -17.00 EUR | D19: =SUBTOTAL(109,OfficeVariances[Vas]) -> 72.00 EUR | E19: =SUBTOTAL(109,OfficeVariances[Kov]) -> 78.00 EUR | F19: =SUBTOTAL(109,OfficeVariances[Bal]) -> -141.00 EUR | G19: =SUBTOTAL(109,OfficeVariances[Geg]) -> -38.00 EUR | H19: =SUBTOTAL(109,OfficeVariances[Bir]) -> 16.00 EUR | I19: =SUBTOTAL(109,OfficeVariances[Lie]) -> 11,470.00 EUR | J19: =SUBTOTAL(109,OfficeVariances[Rgp]) -> 11,470.00 EUR | K19: =SUBTOTAL(109,OfficeVariances[Rgs]) -> 11,470.00 EUR | L19: =SUBTOTAL(109,OfficeVariances[Spl]) -> 11,470.00 EUR | M19: =SUBTOTAL(109,OfficeVariances[Lap]) -> 11,770.00 EUR | N19: =SUBTOTAL(109,OfficeVariances[Grd]) -> 11,770.00 EUR | O19: =SUBTOTAL(109,OfficeVariances[METAI]) -> 69,390.00 EUR
B21: Rinkodaros išlaidos | C21: Sau | D21: Vas | E21: Kov | F21: Bal | G21: Geg | H21: Bir | I21: Lie | J21: Rgp | K21: Rgs | L21: Spl | M21: Lap | N21: Grd | O21: METAI
B22: Svetainės išteklių nuoma | C22: =INDEX(MarketingPlan[],MATCH(INDEX(MarketingVariances[],ROW()-ROW(MarketingVariances[[#Headers],[Sau]]),1),INDEX(MarketingPlan[],,1),0),MATCH(MarketingVariances[[#Headers],[Sau]],MarketingPlan[#Headers],0))-INDEX(MarketingActual[],MATCH(INDEX(MarketingVariances[],ROW()-ROW(MarketingVariances[[#Headers],[Sau]]),1),INDEX(MarketingPlan[],,1),0),MATCH(MarketingVariances[[#Headers],[Sau]],MarketingActual[#Headers],0)) -> 0.00 EUR | D22: =INDEX(MarketingPlan[],MATCH(INDEX(MarketingVariances[],ROW()-ROW(MarketingVariances[[#Headers],[Vas]]),1),INDEX(MarketingPlan[],,1),0),MATCH(MarketingVariances[[#Headers],[Vas]],MarketingPlan[#Headers],0))-INDEX(MarketingActual[],MATCH(INDEX(MarketingVariances[],ROW()-ROW(MarketingVariances[[#Headers],[Vas]]),1),INDEX(MarketingPlan[],,1),0),MATCH(MarketingVariances[[#Headers],[Vas]],MarketingActual[#Headers],0)) -> 0.00 EUR | E22: =INDEX(MarketingPlan[],MATCH(INDEX(MarketingVariances[],ROW()-ROW(MarketingVariances[[#Headers],[Kov]]),1),INDEX(MarketingPlan[],,1),0),MATCH(MarketingVariances[[#Headers],[Kov]],MarketingPlan[#Headers],0))-INDEX(MarketingActual[],MATCH(INDEX(MarketingVariances[],ROW()-ROW(MarketingVariances[[#Headers],[Kov]]),1),INDEX(MarketingPlan[],,1),0),MATCH(MarketingVariances[[#Headers],[Kov]],MarketingActual[#Headers],0)) -> 0.00 EUR | F22: =INDEX(MarketingPlan[],MATCH(INDEX(MarketingVariances[],ROW()-ROW(MarketingVariances[[#Headers],[Bal]]),1),INDEX(MarketingPlan[],,1),0),MATCH(MarketingVariances[[#Headers],[Bal]],MarketingPlan[#Headers],0))-INDEX(MarketingActual[],MATCH(INDEX(MarketingVariances[],ROW()-ROW(MarketingVariances[[#Headers],[Bal]]),1),INDEX(MarketingPlan[],,1),0),MATCH(MarketingVariances[[#Headers],[Bal]],MarketingActual[#Headers],0)) -> 0.00 EUR | G22: =INDEX(MarketingPlan[],MATCH(INDEX(MarketingVariances[],ROW()-ROW(MarketingVariances[[#Headers],[Geg]]),1),INDEX(MarketingPlan[],,1),0),MATCH(MarketingVariances[[#Headers],[Geg]],MarketingPlan[#Headers],0))-INDEX(MarketingActual[],MATCH(INDEX(MarketingVariances[],ROW()-ROW(MarketingVariances[[#Headers],[Geg]]),1),INDEX(MarketingPlan[],,1),0),MATCH(MarketingVariances[[#Headers],[Geg]],MarketingActual[#Headers],0)) -> 0.00 EUR | H22: =INDEX(MarketingPlan[],MATCH(INDEX(MarketingVariances[],ROW()-ROW(MarketingVariances[[#Headers],[Bir]]),1),INDEX(MarketingPlan[],,1),0),MATCH(MarketingVariances[[#Headers],[Bir]],MarketingPlan[#Headers],0))-INDEX(MarketingActual[],MATCH(INDEX(MarketingVariances[],ROW()-ROW(MarketingVariances[[#Headers],[Bir]]),1),INDEX(MarketingPlan[],,1),0),MATCH(MarketingVariances[[#Headers],[Bir]],MarketingActual[#Headers],0)) -> 0.00 EUR | I22: =INDEX(MarketingPlan[],MATCH(INDEX(MarketingVariances[],ROW()-ROW(MarketingVariances[[#Headers],[Lie]]),1),INDEX(MarketingPlan[],,1),0),MATCH(MarketingVariances[[#Headers],[Lie]],MarketingPlan[#Headers],0))-INDEX(MarketingActual[],MATCH(INDEX(MarketingVariances[],ROW()-ROW(MarketingVariances[[#Headers],[Lie]]),1),INDEX(MarketingPlan[],,1),0),MATCH(MarketingVariances[[#Headers],[Lie]],MarketingActual[#Headers],0)) -> 500.00 EUR | J22: =INDEX(MarketingPlan[],MATCH(INDEX(MarketingVariances[],ROW()-ROW(MarketingVariances[[#Headers],[Rgp]]),1),INDEX(MarketingPlan[],,1),0),MATCH(MarketingVariances[[#Headers],[Rgp]],MarketingPlan[#Headers],0))-INDEX(MarketingActual[],MATCH(INDEX(MarketingVariances[],ROW()-ROW(MarketingVariances[[#Headers],[Rgp]]),1),INDEX(MarketingPlan[],,1),0),MATCH(MarketingVariances[[#Headers],[Rgp]],MarketingActual[#Headers],0)) -> 500.00 EUR | K22: =INDEX(MarketingPlan[],MATCH(INDEX(MarketingVariances[],ROW()-ROW(MarketingVariances[[#Headers],[Rgs]]),1),INDEX(MarketingPlan[],,1),0),MATCH(MarketingVariances[[#Headers],[Rgs]],MarketingPlan[#Headers],0))-INDEX(MarketingActual[],MATCH(INDEX(MarketingVariances[],ROW()-ROW(MarketingVariances[[#Headers],[Rgs]]),1),INDEX(MarketingPlan[],,1),0),MATCH(MarketingVariances[[#Headers],[Rgs]],MarketingActual[#Headers],0)) -> 500.00 EUR | L22: =INDEX(MarketingPlan[],MATCH(INDEX(MarketingVariances[],ROW()-ROW(MarketingVariances[[#Headers],[Spl]]),1),INDEX(MarketingPlan[],,1),0),MATCH(MarketingVariances[[#Headers],[Spl]],MarketingPlan[#Headers],0))-INDEX(MarketingActual[],MATCH(INDEX(MarketingVariances[],ROW()-ROW(MarketingVariances[[#Headers],[Spl]]),1),INDEX(MarketingPlan[],,1),0),MATCH(MarketingVariances[[#Headers],[Spl]],MarketingActual[#Headers],0)) -> 500.00 EUR | M22: =INDEX(MarketingPlan[],MATCH(INDEX(MarketingVariances[],ROW()-ROW(MarketingVariances[[#Headers],[Lap]]),1),INDEX(MarketingPlan[],,1),0),MATCH(MarketingVariances[[#Headers],[Lap]],MarketingPlan[#Headers],0))-INDEX(MarketingActual[],MATCH(INDEX(MarketingVariances[],ROW()-ROW(MarketingVariances[[#Headers],[Lap]]),1),INDEX(MarketingPlan[],,1),0),MATCH(MarketingVariances[[#Headers],[Lap]],MarketingActual[#Headers],0)) -> 500.00 EUR | N22: =INDEX(MarketingPlan[],MATCH(INDEX(MarketingVariances[],ROW()-ROW(MarketingVariances[[#Headers],[Grd]]),1),INDEX(MarketingPlan[],,1),0),MATCH(MarketingVariances[[#Headers],[Grd]],MarketingPlan[#Headers],0))-INDEX(MarketingActual[],MATCH(INDEX(MarketingVariances[],ROW()-ROW(MarketingVariances[[#Headers],[Grd]]),1),INDEX(MarketingPlan[],,1),0),MATCH(MarketingVariances[[#Headers],[Grd]],MarketingActual[#Headers],0)) -> 500.00 EUR | O22: =SUM(MarketingVariances[[#This Row],[Sau]:[Grd]]) -> 3,000.00 EUR
B23: Svetainės naujinimai | C23: =INDEX(MarketingPlan[],MATCH(INDEX(MarketingVariances[],ROW()-ROW(MarketingVariances[[#Headers],[Sau]]),1),INDEX(MarketingPlan[],,1),0),MATCH(MarketingVariances[[#Headers],[Sau]],MarketingPlan[#Headers],0))-INDEX(MarketingActual[],MATCH(INDEX(MarketingVariances[],ROW()-ROW(MarketingVariances[[#Headers],[Sau]]),1),INDEX(MarketingPlan[],,1),0),MATCH(MarketingVariances[[#Headers],[Sau]],MarketingActual[#Headers],0)) -> 0.00 EUR | D23: =INDEX(MarketingPlan[],MATCH(INDEX(MarketingVariances[],ROW()-ROW(MarketingVariances[[#Headers],[Vas]]),1),INDEX(MarketingPlan[],,1),0),MATCH(MarketingVariances[[#Headers],[Vas]],MarketingPlan[#Headers],0))-INDEX(MarketingActual[],MATCH(INDEX(MarketingVariances[],ROW()-ROW(MarketingVariances[[#Headers],[Vas]]),1),INDEX(MarketingPlan[],,1),0),MATCH(MarketingVariances[[#Headers],[Vas]],MarketingActual[#Headers],0)) -> 0.00 EUR | E23: =INDEX(MarketingPlan[],MATCH(INDEX(MarketingVariances[],ROW()-ROW(MarketingVariances[[#Headers],[Kov]]),1),INDEX(MarketingPlan[],,1),0),MATCH(MarketingVariances[[#Headers],[Kov]],MarketingPlan[#Headers],0))-INDEX(MarketingActual[],MATCH(INDEX(MarketingVariances[],ROW()-ROW(MarketingVariances[[#Headers],[Kov]]),1),INDEX(MarketingPlan[],,1),0),MATCH(MarketingVariances[[#Headers],[Kov]],MarketingActual[#Headers],0)) -> 0.00 EUR | F23: =INDEX(MarketingPlan[],MATCH(INDEX(MarketingVariances[],ROW()-ROW(MarketingVariances[[#Headers],[Bal]]),1),INDEX(MarketingPlan[],,1),0),MATCH(MarketingVariances[[#Headers],[Bal]],MarketingPlan[#Headers],0))-INDEX(MarketingActual[],MATCH(INDEX(MarketingVariances[],ROW()-ROW(MarketingVariances[[#Headers],[Bal]]),1),INDEX(MarketingPlan[],,1),0),MATCH(MarketingVariances[[#Headers],[Bal]],MarketingActual[#Headers],0)) -> 0.00 EUR | G23: =INDEX(MarketingPlan[],MATCH(INDEX(MarketingVariances[],ROW()-ROW(MarketingVariances[[#Headers],[Geg]]),1),INDEX(MarketingPlan[],,1),0),MATCH(MarketingVariances[[#Headers],[Geg]],MarketingPlan[#Headers],0))-INDEX(MarketingActual[],MATCH(INDEX(MarketingVariances[],ROW()-ROW(MarketingVariances[[#Headers],[Geg]]),1),INDEX(MarketingPlan[],,1),0),MATCH(MarketingVariances[[#Headers],[Geg]],MarketingActual[#Headers],0)) -> 0.00 EUR | H23: =INDEX(MarketingPlan[],MATCH(INDEX(MarketingVariances[],ROW()-ROW(MarketingVariances[[#Headers],[Bir]]),1),INDEX(MarketingPlan[],,1),0),MATCH(MarketingVariances[[#Headers],[Bir]],MarketingPlan[#Headers],0))-INDEX(MarketingActual[],MATCH(INDEX(MarketingVariances[],ROW()-ROW(MarketingVariances[[#Headers],[Bir]]),1),INDEX(MarketingPlan[],,1),0),MATCH(MarketingVariances[[#Headers],[Bir]],MarketingActual[#Headers],0)) -> -500.00 EUR | I23: =INDEX(MarketingPlan[],MATCH(INDEX(MarketingVariances[],ROW()-ROW(MarketingVariances[[#Headers],[Lie]]),1),INDEX(MarketingPlan[],,1),0),MATCH(MarketingVariances[[#Headers],[Lie]],MarketingPlan[#Headers],0))-INDEX(MarketingActual[],MATCH(INDEX(MarketingVariances[],ROW()-ROW(MarketingVariances[[#Headers],[Lie]]),1),INDEX(MarketingPlan[],,1),0),MATCH(MarketingVariances[[#Headers],[Lie]],MarketingActual[#Headers],0)) -> 200.00 EUR | J23: =INDEX(MarketingPlan[],MATCH(INDEX(MarketingVariances[],ROW()-ROW(MarketingVariances[[#Headers],[Rgp]]),1),INDEX(MarketingPlan[],,1),0),MATCH(MarketingVariances[[#Headers],[Rgp]],MarketingPlan[#Headers],0))-INDEX(MarketingActual[],MATCH(INDEX(MarketingVariances[],ROW()-ROW(MarketingVariances[[#Headers],[Rgp]]),1),INDEX(MarketingPlan[],,1),0),MATCH(MarketingVariances[[#Headers],[Rgp]],MarketingActual[#Headers],0)) -> 200.00 EUR | K23: =INDEX(MarketingPlan[],MATCH(INDEX(MarketingVariances[],ROW()-ROW(MarketingVariances[[#Headers],[Rgs]]),1),INDEX(MarketingPlan[],,1),0),MATCH(MarketingVariances[[#Headers],[Rgs]],MarketingPlan[#Headers],0))-INDEX(MarketingActual[],MATCH(INDEX(MarketingVariances[],ROW()-ROW(MarketingVariances[[#Headers],[Rgs]]),1),INDEX(MarketingPlan[],,1),0),MATCH(MarketingVariances[[#Headers],[Rgs]],MarketingActual[#Headers],0)) -> 200.00 EUR | L23: =INDEX(MarketingPlan[],MATCH(INDEX(MarketingVariances[],ROW()-ROW(MarketingVariances[[#Headers],[Spl]]),1),INDEX(MarketingPlan[],,1),0),MATCH(MarketingVariances[[#Headers],[Spl]],MarketingPlan[#Headers],0))-INDEX(MarketingActual[],MATCH(INDEX(MarketingVariances[],ROW()-ROW(MarketingVariances[[#Headers],[Spl]]),1),INDEX(MarketingPlan[],,1),0),MATCH(MarketingVariances[[#Headers],[Spl]],MarketingActual[#Headers],0)) -> 200.00 EUR | M23: =INDEX(MarketingPlan[],MATCH(INDEX(MarketingVariances[],ROW()-ROW(MarketingVariances[[#Headers],[Lap]]),1),INDEX(MarketingPlan[],,1),0),MATCH(MarketingVariances[[#Headers],[Lap]],MarketingPlan[#Headers],0))-INDEX(MarketingActual[],MATCH(INDEX(MarketingVariances[],ROW()-ROW(MarketingVariances[[#Headers],[Lap]]),1),INDEX(MarketingPlan[],,1),0),MATCH(MarketingVariances[[#Headers],[Lap]],MarketingActual[#Headers],0)) -> 200.00 EUR | N23: =INDEX(MarketingPlan[],MATCH(INDEX(MarketingVariances[],ROW()-ROW(MarketingVariances[[#Headers],[Grd]]),1),INDEX(MarketingPlan[],,1),0),MATCH(MarketingVariances[[#Headers],[Grd]],MarketingPlan[#Headers],0))-INDEX(MarketingActual[],MATCH(INDEX(MarketingVariances[],ROW()-ROW(MarketingVariances[[#Headers],[Grd]]),1),INDEX(MarketingPlan[],,1),0),MATCH(MarketingVariances[[#Headers],[Grd]],MarketingActual[#Headers],0)) -> 1,000.00 EUR | O23: =SUM(MarketingVariances[[#This Row],[Sau]:[Grd]]) -> 1,500.00 EUR
B24: Dokumentų parengimas | C24: =INDEX(MarketingPlan[],MATCH(INDEX(MarketingVariances[],ROW()-ROW(MarketingVariances[[#Headers],[Sau]]),1),INDEX(MarketingPlan[],,1),0),MATCH(MarketingVariances[[#Headers],[Sau]],MarketingPlan[#Headers],0))-INDEX(MarketingActual[],MATCH(INDEX(MarketingVariances[],ROW()-ROW(MarketingVariances[[#Headers],[Sau]]),1),INDEX(MarketingPlan[],,1),0),MATCH(MarketingVariances[[#Headers],[Sau]],MarketingActual[#Headers],0)) -> 200.00 EUR | D24: =INDEX(MarketingPlan[],MATCH(INDEX(MarketingVariances[],ROW()-ROW(MarketingVariances[[#Headers],[Vas]]),1),INDEX(MarketingPlan[],,1),0),MATCH(MarketingVariances[[#Headers],[Vas]],MarketingPlan[#Headers],0))-INDEX(MarketingActual[],MATCH(INDEX(MarketingVariances[],ROW()-ROW(MarketingVariances[[#Headers],[Vas]]),1),INDEX(MarketingPlan[],,1),0),MATCH(MarketingVariances[[#Headers],[Vas]],MarketingActual[#Headers],0)) -> 0.00 EUR | E24: =INDEX(MarketingPlan[],MATCH(INDEX(MarketingVariances[],ROW()-ROW(MarketingVariances[[#Headers],[Kov]]),1),INDEX(MarketingPlan[],,1),0),MATCH(MarketingVariances[[#Headers],[Kov]],MarketingPlan[#Headers],0))-INDEX(MarketingActual[],MATCH(INDEX(MarketingVariances[],ROW()-ROW(MarketingVariances[[#Headers],[Kov]]),1),INDEX(MarketingPlan[],,1),0),MATCH(MarketingVariances[[#Headers],[Kov]],MarketingActual[#Headers],0)) -> 0.00 EUR | F24: =INDEX(MarketingPlan[],MATCH(INDEX(MarketingVariances[],ROW()-ROW(MarketingVariances[[#Headers],[Bal]]),1),INDEX(MarketingPlan[],,1),0),MATCH(MarketingVariances[[#Headers],[Bal]],MarketingPlan[#Headers],0))-INDEX(MarketingActual[],MATCH(INDEX(MarketingVariances[],ROW()-ROW(MarketingVariances[[#Headers],[Bal]]),1),INDEX(MarketingPlan[],,1),0),MATCH(MarketingVariances[[#Headers],[Bal]],MarketingActual[#Headers],0)) -> -500.00 EUR | G24: =INDEX(MarketingPlan[],MATCH(INDEX(MarketingVariances[],ROW()-ROW(MarketingVariances[[#Headers],[Geg]]),1),INDEX(MarketingPlan[],,1),0),MATCH(MarketingVariances[[#Headers],[Geg]],MarketingPlan[#Headers],0))-INDEX(MarketingActual[],MATCH(INDEX(MarketingVariances[],ROW()-ROW(MarketingVariances[[#Headers],[Geg]]),1),INDEX(MarketingPlan[],,1),0),MATCH(MarketingVariances[[#Headers],[Geg]],MarketingActual[#Headers],0)) -> 0.00 EUR | H24: =INDEX(MarketingPlan[],MATCH(INDEX(MarketingVariances[],ROW()-ROW(MarketingVariances[[#Headers],[Bir]]),1),INDEX(MarketingPlan[],,1),0),MATCH(MarketingVariances[[#Headers],[Bir]],MarketingPlan[#Headers],0))-INDEX(MarketingActual[],MATCH(INDEX(MarketingVariances[],ROW()-ROW(MarketingVariances[[#Headers],[Bir]]),1),INDEX(MarketingPlan[],,1),0),MATCH(MarketingVariances[[#Headers],[Bir]],MarketingActual[#Headers],0)) -> 0.00 EUR | I24: =INDEX(MarketingPlan[],MATCH(INDEX(MarketingVariances[],ROW()-ROW(MarketingVariances[[#Headers],[Lie]]),1),INDEX(MarketingPlan[],,1),0),MATCH(MarketingVariances[[#Headers],[Lie]],MarketingPlan[#Headers],0))-INDEX(MarketingActual[],MATCH(INDEX(MarketingVariances[],ROW()-ROW(MarketingVariances[[#Headers],[Lie]]),1),INDEX(MarketingPlan[],,1),0),MATCH(MarketingVariances[[#Headers],[Lie]],MarketingActual[#Headers],0)) -> 5,000.00 EUR | J24: =INDEX(MarketingPlan[],MATCH(INDEX(MarketingVariances[],ROW()-ROW(MarketingVariances[[#Headers],[Rgp]]),1),INDEX(MarketingPlan[],,1),0),MATCH(MarketingVariances[[#Headers],[Rgp]],MarketingPlan[#Headers],0))-INDEX(MarketingActual[],MATCH(INDEX(MarketingVariances[],ROW()-ROW(MarketingVariances[[#Headers],[Rgp]]),1),INDEX(MarketingPlan[],,1),0),MATCH(MarketingVariances[[#Headers],[Rgp]],MarketingActual[#Headers],0)) -> 0.00 EUR | K24: =INDEX(MarketingPlan[],MATCH(INDEX(MarketingVariances[],ROW()-ROW(MarketingVariances[[#Headers],[Rgs]]),1),INDEX(MarketingPlan[],,1),0),MATCH(MarketingVariances[[#Headers],[Rgs]],MarketingPlan[#Headers],0))-INDEX(MarketingActual[],MATCH(INDEX(MarketingVariances[],ROW()-ROW(MarketingVariances[[#Headers],[Rgs]]),1),INDEX(MarketingPlan[],,1),0),MATCH(MarketingVariances[[#Headers],[Rgs]],MarketingActual[#Headers],0)) -> 0.00 EUR | L24: =INDEX(MarketingPlan[],MATCH(INDEX(MarketingVariances[],ROW()-ROW(MarketingVariances[[#Headers],[Spl]]),1),INDEX(MarketingPlan[],,1),0),MATCH(MarketingVariances[[#Headers],[Spl]],MarketingPlan[#Headers],0))-INDEX(MarketingActual[],MATCH(INDEX(MarketingVariances[],ROW()-ROW(MarketingVariances[[#Headers],[Spl]]),1),INDEX(MarketingPlan[],,1),0),MATCH(MarketingVariances[[#Headers],[Spl]],MarketingActual[#Headers],0)) -> 5,000.00 EUR | M24: =INDEX(MarketingPlan[],MATCH(INDEX(MarketingVariances[],ROW()-ROW(MarketingVariances[[#Headers],[Lap]]),1),INDEX(MarketingPlan[],,1),0),MATCH(MarketingVariances[[#Headers],[Lap]],MarketingPlan[#Headers],0))-INDEX(MarketingActual[],MATCH(INDEX(MarketingVariances[],ROW()-ROW(MarketingVariances[[#Headers],[Lap]]),1),INDEX(MarketingPlan[],,1),0),MATCH(MarketingVariances[[#Headers],[Lap]],MarketingActual[#Headers],0)) -> 0.00 EUR | N24: =INDEX(MarketingPlan[],MATCH(INDEX(MarketingVariances[],ROW()-ROW(MarketingVariances[[#Headers],[Grd]]),1),INDEX(MarketingPlan[],,1),0),MATCH(MarketingVariances[[#Headers],[Grd]],MarketingPlan[#Headers],0))-INDEX(MarketingActual[],MATCH(INDEX(MarketingVariances[],ROW()-ROW(MarketingVariances[[#Headers],[Grd]]),1),INDEX(MarketingPlan[],,1),0),MATCH(MarketingVariances[[#Headers],[Grd]],MarketingActual[#Headers],0)) -> 0.00 EUR | O24: =SUM(MarketingVariances[[#This Row],[Sau]:[Grd]]) -> 9,700.00 EUR
B25: Dokumentų spausdinimas | C25: =INDEX(MarketingPlan[],MATCH(INDEX(MarketingVariances[],ROW()-ROW(MarketingVariances[[#Headers],[Sau]]),1),INDEX(MarketingPlan[],,1),0),MATCH(MarketingVariances[[#Headers],[Sau]],MarketingPlan[#Headers],0))-INDEX(MarketingActual[],MATCH(INDEX(MarketingVariances[],ROW()-ROW(MarketingVariances[[#Headers],[Sau]]),1),INDEX(MarketingPlan[],,1),0),MATCH(MarketingVariances[[#Headers],[Sau]],MarketingActual[#Headers],0)) -> 100.00 EUR | D25: =INDEX(MarketingPlan[],MATCH(INDEX(MarketingVariances[],ROW()-ROW(MarketingVariances[[#Headers],[Vas]]),1),INDEX(MarketingPlan[],,1),0),MATCH(MarketingVariances[[#Headers],[Vas]],MarketingPlan[#Headers],0))-INDEX(MarketingActual[],MATCH(INDEX(MarketingVariances[],ROW()-ROW(MarketingVariances[[#Headers],[Vas]]),1),INDEX(MarketingPlan[],,1),0),MATCH(MarketingVariances[[#Headers],[Vas]],MarketingActual[#Headers],0)) -> -300.00 EUR | E25: =INDEX(MarketingPlan[],MATCH(INDEX(MarketingVariances[],ROW()-ROW(MarketingVariances[[#Headers],[Kov]]),1),INDEX(MarketingPlan[],,1),0),MATCH(MarketingVariances[[#Headers],[Kov]],MarketingPlan[#Headers],0))-INDEX(MarketingActual[],MATCH(INDEX(MarketingVariances[],ROW()-ROW(MarketingVariances[[#Headers],[Kov]]),1),INDEX(MarketingPlan[],,1),0),MATCH(MarketingVariances[[#Headers],[Kov]],MarketingActual[#Headers],0)) -> 100.00 EUR | F25: =INDEX(MarketingPlan[],MATCH(INDEX(MarketingVariances[],ROW()-ROW(MarketingVariances[[#Headers],[Bal]]),1),INDEX(MarketingPlan[],,1),0),MATCH(MarketingVariances[[#Headers],[Bal]],MarketingPlan[#Headers],0))-INDEX(MarketingActual[],MATCH(INDEX(MarketingVariances[],ROW()-ROW(MarketingVariances[[#Headers],[Bal]]),1),INDEX(MarketingPlan[],,1),0),MATCH(MarketingVariances[[#Headers],[Bal]],MarketingActual[#Headers],0)) -> 100.00 EUR | G25: =INDEX(MarketingPlan[],MATCH(INDEX(MarketingVariances[],ROW()-ROW(MarketingVariances[[#Headers],[Geg]]),1),INDEX(MarketingPlan[],,1),0),MATCH(MarketingVariances[[#Headers],[Geg]],MarketingPlan[#Headers],0))-INDEX(MarketingActual[],MATCH(INDEX(MarketingVariances[],ROW()-ROW(MarketingVariances[[#Headers],[Geg]]),1),INDEX(MarketingPlan[],,1),0),MATCH(MarketingVariances[[#Headers],[Geg]],MarketingActual[#Headers],0)) -> -400.00 EUR | H25: =INDEX(MarketingPlan[],MATCH(INDEX(MarketingVariances[],ROW()-ROW(MarketingVariances[[#Headers],[Bir]]),1),INDEX(MarketingPlan[],,1),0),MATCH(MarketingVariances[[#Headers],[Bir]],MarketingPlan[#Headers],0))-INDEX(MarketingActual[],MATCH(INDEX(MarketingVariances[],ROW()-ROW(MarketingVariances[[#Headers],[Bir]]),1),INDEX(MarketingPlan[],,1),0),MATCH(MarketingVariances[[#Headers],[Bir]],MarketingActual[#Headers],0)) -> 20.00 EUR | I25: =INDEX(MarketingPlan[],MATCH(INDEX(MarketingVariances[],ROW()-ROW(MarketingVariances[[#Headers],[Lie]]),1),INDEX(MarketingPlan[],,1),0),MATCH(MarketingVariances[[#Headers],[Lie]],MarketingPlan[#Headers],0))-INDEX(MarketingActual[],MATCH(INDEX(MarketingVariances[],ROW()-ROW(MarketingVariances[[#Headers],[Lie]]),1),INDEX(MarketingPlan[],,1),0),MATCH(MarketingVariances[[#Headers],[Lie]],MarketingActual[#Headers],0)) -> 200.00 EUR | J25: =INDEX(MarketingPlan[],MATCH(INDEX(MarketingVariances[],ROW()-ROW(MarketingVariances[[#Headers],[Rgp]]),1),INDEX(MarketingPlan[],,1),0),MATCH(MarketingVariances[[#Headers],[Rgp]],MarketingPlan[#Headers],0))-INDEX(MarketingActual[],MATCH(INDEX(MarketingVariances[],ROW()-ROW(MarketingVariances[[#Headers],[Rgp]]),1),INDEX(MarketingPlan[],,1),0),MATCH(MarketingVariances[[#Headers],[Rgp]],MarketingActual[#Headers],0)) -> 200.00 EUR | K25: =INDEX(MarketingPlan[],MATCH(INDEX(MarketingVariances[],ROW()-ROW(MarketingVariances[[#Headers],[Rgs]]),1),INDEX(MarketingPlan[],,1),0),MATCH(MarketingVariances[[#Headers],[Rgs]],MarketingPlan[#Headers],0))-INDEX(MarketingActual[],MATCH(INDEX(MarketingVariances[],ROW()-ROW(MarketingVariances[[#Headers],[Rgs]]),1),INDEX(MarketingPlan[],,1),0),MATCH(MarketingVariances[[#Headers],[Rgs]],MarketingActual[#Headers],0)) -> 200.00 EUR | L25: =INDEX(MarketingPlan[],MATCH(INDEX(MarketingVariances[],ROW()-ROW(MarketingVariances[[#Headers],[Spl]]),1),INDEX(MarketingPlan[],,1),0),MATCH(MarketingVariances[[#Headers],[Spl]],MarketingPlan[#Headers],0))-INDEX(MarketingActual[],MATCH(INDEX(MarketingVariances[],ROW()-ROW(MarketingVariances[[#Headers],[Spl]]),1),INDEX(MarketingPlan[],,1),0),MATCH(MarketingVariances[[#Headers],[Spl]],MarketingActual[#Headers],0)) -> 200.00 EUR | M25: =INDEX(MarketingPlan[],MATCH(INDEX(MarketingVariances[],ROW()-ROW(MarketingVariances[[#Headers],[Lap]]),1),INDEX(MarketingPlan[],,1),0),MATCH(MarketingVariances[[#Headers],[Lap]],MarketingPlan[#Headers],0))-INDEX(MarketingActual[],MATCH(INDEX(MarketingVariances[],ROW()-ROW(MarketingVariances[[#Headers],[Lap]]),1),INDEX(MarketingPlan[],,1),0),MATCH(MarketingVariances[[#Headers],[Lap]],MarketingActual[#Headers],0)) -> 200.00 EUR | N25: =INDEX(MarketingPlan[],MATCH(INDEX(MarketingVariances[],ROW()-ROW(MarketingVariances[[#Headers],[Grd]]),1),INDEX(MarketingPlan[],,1),0),MATCH(MarketingVariances[[#Headers],[Grd]],MarketingPlan[#Headers],0))-INDEX(MarketingActual[],MATCH(INDEX(MarketingVariances[],ROW()-ROW(MarketingVariances[[#Headers],[Grd]]),1),INDEX(MarketingPlan[],,1),0),MATCH(MarketingVariances[[#Headers],[Grd]],MarketingActual[#Headers],0)) -> 200.00 EUR | O25: =SUM(MarketingVariances[[#This Row],[Sau]:[Grd]]) -> 820.00 EUR
B26: Rinkodaros įvykiai | C26: =INDEX(MarketingPlan[],MATCH(INDEX(MarketingVariances[],ROW()-ROW(MarketingVariances[[#Headers],[Sau]]),1),INDEX(MarketingPlan[],,1),0),MATCH(MarketingVariances[[#Headers],[Sau]],MarketingPlan[#Headers],0))-INDEX(MarketingActual[],MATCH(INDEX(MarketingVariances[],ROW()-ROW(MarketingVariances[[#Headers],[Sau]]),1),INDEX(MarketingPlan[],,1),0),MATCH(MarketingVariances[[#Headers],[Sau]],MarketingActual[#Headers],0)) -> 200.00 EUR | D26: =INDEX(MarketingPlan[],MATCH(INDEX(MarketingVariances[],ROW()-ROW(MarketingVariances[[#Headers],[Vas]]),1),INDEX(MarketingPlan[],,1),0),MATCH(MarketingVariances[[#Headers],[Vas]],MarketingPlan[#Headers],0))-INDEX(MarketingActual[],MATCH(INDEX(MarketingVariances[],ROW()-ROW(MarketingVariances[[#Headers],[Vas]]),1),INDEX(MarketingPlan[],,1),0),MATCH(MarketingVariances[[#Headers],[Vas]],MarketingActual[#Headers],0)) -> -200.00 EUR | E26: =INDEX(MarketingPlan[],MATCH(INDEX(MarketingVariances[],ROW()-ROW(MarketingVariances[[#Headers],[Kov]]),1),INDEX(MarketingPlan[],,1),0),MATCH(MarketingVariances[[#Headers],[Kov]],MarketingPlan[#Headers],0))-INDEX(MarketingActual[],MATCH(INDEX(MarketingVariances[],ROW()-ROW(MarketingVariances[[#Headers],[Kov]]),1),INDEX(MarketingPlan[],,1),0),MATCH(MarketingVariances[[#Headers],[Kov]],MarketingActual[#Headers],0)) -> -200.00 EUR | F26: =INDEX(MarketingPlan[],MATCH(INDEX(MarketingVariances[],ROW()-ROW(MarketingVariances[[#Headers],[Bal]]),1),INDEX(MarketingPlan[],,1),0),MATCH(MarketingVariances[[#Headers],[Bal]],MarketingPlan[#Headers],0))-INDEX(MarketingActual[],MATCH(INDEX(MarketingVariances[],ROW()-ROW(MarketingVariances[[#Headers],[Bal]]),1),INDEX(MarketingPlan[],,1),0),MATCH(MarketingVariances[[#Headers],[Bal]],MarketingActual[#Headers],0)) -> 300.00 EUR | G26: =INDEX(MarketingPlan[],MATCH(INDEX(MarketingVariances[],ROW()-ROW(MarketingVariances[[#Headers],[Geg]]),1),INDEX(MarketingPlan[],,1),0),MATCH(MarketingVariances[[#Headers],[Geg]],MarketingPlan[#Headers],0))-INDEX(MarketingActual[],MATCH(INDEX(MarketingVariances[],ROW()-ROW(MarketingVariances[[#Headers],[Geg]]),1),INDEX(MarketingPlan[],,1),0),MATCH(MarketingVariances[[#Headers],[Geg]],MarketingActual[#Headers],0)) -> 500.00 EUR | H26: =INDEX(MarketingPlan[],MATCH(INDEX(MarketingVariances[],ROW()-ROW(MarketingVariances[[#Headers],[Bir]]),1),INDEX(MarketingPlan[],,1),0),MATCH(MarketingVariances[[#Headers],[Bir]],MarketingPlan[#Headers],0))-INDEX(MarketingActual[],MATCH(INDEX(MarketingVariances[],ROW()-ROW(MarketingVariances[[#Headers],[Bir]]),1),INDEX(MarketingPlan[],,1),0),MATCH(MarketingVariances[[#Headers],[Bir]],MarketingActual[#Headers],0)) -> -300.00 EUR | I26: =INDEX(MarketingPlan[],MATCH(INDEX(MarketingVariances[],ROW()-ROW(MarketingVariances[[#Headers],[Lie]]),1),INDEX(MarketingPlan[],,1),0),MATCH(MarketingVariances[[#Headers],[Lie]],MarketingPlan[#Headers],0))-INDEX(MarketingActual[],MATCH(INDEX(MarketingVariances[],ROW()-ROW(MarketingVariances[[#Headers],[Lie]]),1),INDEX(MarketingPlan[],,1),0),MATCH(MarketingVariances[[#Headers],[Lie]],MarketingActual[#Headers],0)) -> 2,000.00 EUR | J26: =INDEX(MarketingPlan[],MATCH(INDEX(MarketingVariances[],ROW()-ROW(MarketingVariances[[#Headers],[Rgp]]),1),INDEX(MarketingPlan[],,1),0),MATCH(MarketingVariances[[#Headers],[Rgp]],MarketingPlan[#Headers],0))-INDEX(MarketingActual[],MATCH(INDEX(MarketingVariances[],ROW()-ROW(MarketingVariances[[#Headers],[Rgp]]),1),INDEX(MarketingPlan[],,1),0),MATCH(MarketingVariances[[#Headers],[Rgp]],MarketingActual[#Headers],0)) -> 5,000.00 EUR | K26: =INDEX(MarketingPlan[],MATCH(INDEX(MarketingVariances[],ROW()-ROW(MarketingVariances[[#Headers],[Rgs]]),1),INDEX(MarketingPlan[],,1),0),MATCH(MarketingVariances[[#Headers],[Rgs]],MarketingPlan[#Headers],0))-INDEX(MarketingActual[],MATCH(INDEX(MarketingVariances[],ROW()-ROW(MarketingVariances[[#Headers],[Rgs]]),1),INDEX(MarketingPlan[],,1),0),MATCH(MarketingVariances[[#Headers],[Rgs]],MarketingActual[#Headers],0)) -> 2,000.00 EUR | L26: =INDEX(MarketingPlan[],MATCH(INDEX(MarketingVariances[],ROW()-ROW(MarketingVariances[[#Headers],[Spl]]),1),INDEX(MarketingPlan[],,1),0),MATCH(MarketingVariances[[#Headers],[Spl]],MarketingPlan[#Headers],0))-INDEX(MarketingActual[],MATCH(INDEX(MarketingVariances[],ROW()-ROW(MarketingVariances[[#Headers],[Spl]]),1),INDEX(MarketingPlan[],,1),0),MATCH(MarketingVariances[[#Headers],[Spl]],MarketingActual[#Headers],0)) -> 2,000.00 EUR | M26: =INDEX(MarketingPlan[],MATCH(INDEX(MarketingVariances[],ROW()-ROW(MarketingVariances[[#Headers],[Lap]]),1),INDEX(MarketingPlan[],,1),0),MATCH(MarketingVariances[[#Headers],[Lap]],MarketingPlan[#Headers],0))-INDEX(MarketingActual[],MATCH(INDEX(MarketingVariances[],ROW()-ROW(MarketingVariances[[#Headers],[Lap]]),1),INDEX(MarketingPlan[],,1),0),MATCH(MarketingVariances[[#Headers],[Lap]],MarketingActual[#Headers],0)) -> 2,000.00 EUR | N26: =INDEX(MarketingPlan[],MATCH(INDEX(MarketingVariances[],ROW()-ROW(MarketingVariances[[#Headers],[Grd]]),1),INDEX(MarketingPlan[],,1),0),MATCH(MarketingVariances[[#Headers],[Grd]],MarketingPlan[#Headers],0))-INDEX(MarketingActual[],MATCH(INDEX(MarketingVariances[],ROW()-ROW(MarketingVariances[[#Headers],[Grd]]),1),INDEX(MarketingPlan[],,1),0),MATCH(MarketingVariances[[#Headers],[Grd]],MarketingActual[#Headers],0)) -> 5,000.00 EUR | O26: =SUM(MarketingVariances[[#This Row],[Sau]:[Grd]]) -> 18,300.00 EUR
B27: Įvairios išlaidos | C27: =INDEX(MarketingPlan[],MATCH(INDEX(MarketingVariances[],ROW()-ROW(MarketingVariances[[#Headers],[Sau]]),1),INDEX(MarketingPlan[],,1),0),MATCH(MarketingVariances[[#Headers],[Sau]],MarketingPlan[#Headers],0))-INDEX(MarketingActual[],MATCH(INDEX(MarketingVariances[],ROW()-ROW(MarketingVariances[[#Headers],[Sau]]),1),INDEX(MarketingPlan[],,1),0),MATCH(MarketingVariances[[#Headers],[Sau]],MarketingActual[#Headers],0)) -> 55.00 EUR | D27: =INDEX(MarketingPlan[],MATCH(INDEX(MarketingVariances[],ROW()-ROW(MarketingVariances[[#Headers],[Vas]]),1),INDEX(MarketingPlan[],,1),0),MATCH(MarketingVariances[[#Headers],[Vas]],MarketingPlan[#Headers],0))-INDEX(MarketingActual[],MATCH(INDEX(MarketingVariances[],ROW()-ROW(MarketingVariances[[#Headers],[Vas]]),1),INDEX(MarketingPlan[],,1),0),MATCH(MarketingVariances[[#Headers],[Vas]],MarketingActual[#Headers],0)) -> 44.00 EUR | E27: =INDEX(MarketingPlan[],MATCH(INDEX(MarketingVariances[],ROW()-ROW(MarketingVariances[[#Headers],[Kov]]),1),INDEX(MarketingPlan[],,1),0),MATCH(MarketingVariances[[#Headers],[Kov]],MarketingPlan[#Headers],0))-INDEX(MarketingActual[],MATCH(INDEX(MarketingVariances[],ROW()-ROW(MarketingVariances[[#Headers],[Kov]]),1),INDEX(MarketingPlan[],,1),0),MATCH(MarketingVariances[[#Headers],[Kov]],MarketingActual[#Headers],0)) -> 77.00 EUR | F27: =INDEX(MarketingPlan[],MATCH(INDEX(MarketingVariances[],ROW()-ROW(MarketingVariances[[#Headers],[Bal]]),1),INDEX(MarketingPlan[],,1),0),MATCH(MarketingVariances[[#Headers],[Bal]],MarketingPlan[#Headers],0))-INDEX(MarketingActual[],MATCH(INDEX(MarketingVariances[],ROW()-ROW(MarketingVariances[[#Headers],[Bal]]),1),INDEX(MarketingPlan[],,1),0),MATCH(MarketingVariances[[#Headers],[Bal]],MarketingActual[#Headers],0)) -> -23.00 EUR | G27: =INDEX(MarketingPlan[],MATCH(INDEX(MarketingVariances[],ROW()-ROW(MarketingVariances[[#Headers],[Geg]]),1),INDEX(MarketingPlan[],,1),0),MATCH(MarketingVariances[[#Headers],[Geg]],MarketingPlan[#Headers],0))-INDEX(MarketingActual[],MATCH(INDEX(MarketingVariances[],ROW()-ROW(MarketingVariances[[#Headers],[Geg]]),1),INDEX(MarketingPlan[],,1),0),MATCH(MarketingVariances[[#Headers],[Geg]],MarketingActual[#Headers],0)) -> 13.00 EUR | H27: =INDEX(MarketingPlan[],MATCH(INDEX(MarketingVariances[],ROW()-ROW(MarketingVariances[[#Headers],[Bir]]),1),INDEX(MarketingPlan[],,1),0),MATCH(MarketingVariances[[#Headers],[Bir]],MarketingPlan[#Headers],0))-INDEX(MarketingActual[],MATCH(INDEX(MarketingVariances[],ROW()-ROW(MarketingVariances[[#Headers],[Bir]]),1),INDEX(MarketingPlan[],,1),0),MATCH(MarketingVariances[[#Headers],[Bir]],MarketingActual[#Headers],0)) -> -45.00 EUR | I27: =INDEX(MarketingPlan[],MATCH(INDEX(MarketingVariances[],ROW()-ROW(MarketingVariances[[#Headers],[Lie]]),1),INDEX(MarketingPlan[],,1),0),MATCH(MarketingVariances[[#Headers],[Lie]],MarketingPlan[#Headers],0))-INDEX(MarketingActual[],MATCH(INDEX(MarketingVariances[],ROW()-ROW(MarketingVariances[[#Headers],[Lie]]),1),INDEX(MarketingPlan[],,1),0),MATCH(MarketingVariances[[#Headers],[Lie]],MarketingActual[#Headers],0)) -> 200.00 EUR | J27: =INDEX(MarketingPlan[],MATCH(INDEX(MarketingVariances[],ROW()-ROW(MarketingVariances[[#Headers],[Rgp]]),1),INDEX(MarketingPlan[],,1),0),MATCH(MarketingVariances[[#Headers],[Rgp]],MarketingPlan[#Headers],0))-INDEX(MarketingActual[],MATCH(INDEX(MarketingVariances[],ROW()-ROW(MarketingVariances[[#Headers],[Rgp]]),1),INDEX(MarketingPlan[],,1),0),MATCH(MarketingVariances[[#Headers],[Rgp]],MarketingActual[#Headers],0)) -> 200.00 EUR | K27: =INDEX(MarketingPlan[],MATCH(INDEX(MarketingVariances[],ROW()-ROW(MarketingVariances[[#Headers],[Rgs]]),1),INDEX(MarketingPlan[],,1),0),MATCH(MarketingVariances[[#Headers],[Rgs]],MarketingPlan[#Headers],0))-INDEX(MarketingActual[],MATCH(INDEX(MarketingVariances[],ROW()-ROW(MarketingVariances[[#Headers],[Rgs]]),1),INDEX(MarketingPlan[],,1),0),MATCH(MarketingVariances[[#Headers],[Rgs]],MarketingActual[#Headers],0)) -> 200.00 EUR | L27: =INDEX(MarketingPlan[],MATCH(INDEX(MarketingVariances[],ROW()-ROW(MarketingVariances[[#Headers],[Spl]]),1),INDEX(MarketingPlan[],,1),0),MATCH(MarketingVariances[[#Headers],[Spl]],MarketingPlan[#Headers],0))-INDEX(MarketingActual[],MATCH(INDEX(MarketingVariances[],ROW()-ROW(MarketingVariances[[#Headers],[Spl]]),1),INDEX(MarketingPlan[],,1),0),MATCH(MarketingVariances[[#Headers],[Spl]],MarketingActual[#Headers],0)) -> 200.00 EUR | M27: =INDEX(MarketingPlan[],MATCH(INDEX(MarketingVariances[],ROW()-ROW(MarketingVariances[[#Headers],[Lap]]),1),INDEX(MarketingPlan[],,1),0),MATCH(MarketingVariances[[#Headers],[Lap]],MarketingPlan[#Headers],0))-INDEX(MarketingActual[],MATCH(INDEX(MarketingVariances[],ROW()-ROW(MarketingVariances[[#Headers],[Lap]]),1),INDEX(MarketingPlan[],,1),0),MATCH(MarketingVariances[[#Headers],[Lap]],MarketingActual[#Headers],0)) -> 200.00 EUR | N27: =INDEX(MarketingPlan[],MATCH(INDEX(MarketingVariances[],ROW()-ROW(MarketingVariances[[#Headers],[Grd]]),1),INDEX(MarketingPlan[],,1),0),MATCH(MarketingVariances[[#Headers],[Grd]],MarketingPlan[#Headers],0))-INDEX(MarketingActual[],MATCH(INDEX(MarketingVariances[],ROW()-ROW(MarketingVariances[[#Headers],[Grd]]),1),INDEX(MarketingPlan[],,1),0),MATCH(MarketingVariances[[#Headers],[Grd]],MarketingActual[#Headers],0)) -> 200.00 EUR | O27: =SUM(MarketingVariances[[#This Row],[Sau]:[Grd]]) -> 1,321.00 EUR
B28: Tarpinė suma | C28: =SUBTOTAL(109,MarketingVariances[Sau]) -> 555.00 EUR | D28: =SUBTOTAL(109,MarketingVariances[Vas]) -> -456.00 EUR | E28: =SUBTOTAL(109,MarketingVariances[Kov]) -> -23.00 EUR | F28: =SUBTOTAL(109,MarketingVariances[Bal]) -> -123.00 EUR | G28: =SUBTOTAL(109,MarketingVariances[Geg]) -> 113.00 EUR | H28: =SUBTOTAL(109,MarketingVariances[Bir]) -> -825.00 EUR | I28: =SUBTOTAL(109,MarketingVariances[Lie]) -> 8,100.00 EUR | J28: =SUBTOTAL(109,MarketingVariances[Rgp]) -> 6,100.00 EUR | K28: =SUBTOTAL(109,MarketingVariances[Rgs]) -> 3,100.00 EUR | L28: =SUBTOTAL(109,MarketingVariances[Spl]) -> 8,100.00 EUR | M28: =SUBTOTAL(109,MarketingVariances[Lap]) -> 3,100.00 EUR | N28: =SUBTOTAL(109,MarketingVariances[Grd]) -> 6,900.00 EUR | O28: =SUBTOTAL(109,MarketingVariances[METAI]) -> 34,641.00 EUR
B30: Mokymas / kelionės | C30: Sau | D30: Vas | E30: Kov | F30: Bal | G30: Geg | H30: Bir | I30: Lie | J30: Rgp | K30: Rgs | L30: Spl | M30: Lap | N30: Grd | O30: METAI
B31: Mokymo klasės | C31: =INDEX(TrainingAndTravelPlan[],MATCH(INDEX(TrainingAndTravelVariances[],ROW()-ROW(TrainingAndTravelVariances[[#Headers],[Sau]]),1),INDEX(TrainingAndTravelPlan[],,1),0),MATCH(TrainingAndTravelVariances[[#Headers],[Sau]],TrainingAndTravelPlan[#Headers],0))-INDEX(TrainingAndTravelActual[],MATCH(INDEX(TrainingAndTravelVariances[],ROW()-ROW(TrainingAndTravelVariances[[#Headers],[Sau]]),1),INDEX(TrainingAndTravelPlan[],,1),0),MATCH(TrainingAndTravelVariances[[#Headers],[Sau]],TrainingAndTravelActual[#Headers],0)) -> 400.00 EUR | D31: =INDEX(TrainingAndTravelPlan[],MATCH(INDEX(TrainingAndTravelVariances[],ROW()-ROW(TrainingAndTravelVariances[[#Headers],[Vas]]),1),INDEX(TrainingAndTravelPlan[],,1),0),MATCH(TrainingAndTravelVariances[[#Headers],[Vas]],TrainingAndTravelPlan[#Headers],0))-INDEX(TrainingAndTravelActual[],MATCH(INDEX(TrainingAndTravelVariances[],ROW()-ROW(TrainingAndTravelVariances[[#Headers],[Vas]]),1),INDEX(TrainingAndTravelPlan[],,1),0),MATCH(TrainingAndTravelVariances[[#Headers],[Vas]],TrainingAndTravelActual[#Headers],0)) -> -400.00 EUR | E31: =INDEX(TrainingAndTravelPlan[],MATCH(INDEX(TrainingAndTravelVariances[],ROW()-ROW(TrainingAndTravelVariances[[#Headers],[Kov]]),1),INDEX(TrainingAndTravelPlan[],,1),0),MATCH(TrainingAndTravelVariances[[#Headers],[Kov]],TrainingAndTravelPlan[#Headers],0))-INDEX(TrainingAndTravelActual[],MATCH(INDEX(TrainingAndTravelVariances[],ROW()-ROW(TrainingAndTravelVariances[[#Headers],[Kov]]),1),INDEX(TrainingAndTravelPlan[],,1),0),MATCH(TrainingAndTravelVariances[[#Headers],[Kov]],TrainingAndTravelActual[#Headers],0)) -> 600.00 EUR | F31: =INDEX(TrainingAndTravelPlan[],MATCH(INDEX(TrainingAndTravelVariances[],ROW()-ROW(TrainingAndTravelVariances[[#Headers],[Bal]]),1),INDEX(TrainingAndTravelPlan[],,1),0),MATCH(TrainingAndTravelVariances[[#Headers],[Bal]],TrainingAndTravelPlan[#Headers],0))-INDEX(TrainingAndTravelActual[],MATCH(INDEX(TrainingAndTravelVariances[],ROW()-ROW(TrainingAndTravelVariances[[#Headers],[Bal]]),1),INDEX(TrainingAndTravelPlan[],,1),0),MATCH(TrainingAndTravelVariances[[#Headers],[Bal]],TrainingAndTravelActual[#Headers],0)) -> 400.00 EUR | G31: =INDEX(TrainingAndTravelPlan[],MATCH(INDEX(TrainingAndTravelVariances[],ROW()-ROW(TrainingAndTravelVariances[[#Headers],[Geg]]),1),INDEX(TrainingAndTravelPlan[],,1),0),MATCH(TrainingAndTravelVariances[[#Headers],[Geg]],TrainingAndTravelPlan[#Headers],0))-INDEX(TrainingAndTravelActual[],MATCH(INDEX(TrainingAndTravelVariances[],ROW()-ROW(TrainingAndTravelVariances[[#Headers],[Geg]]),1),INDEX(TrainingAndTravelPlan[],,1),0),MATCH(TrainingAndTravelVariances[[#Headers],[Geg]],TrainingAndTravelActual[#Headers],0)) -> 800.00 EUR | H31: =INDEX(TrainingAndTravelPlan[],MATCH(INDEX(TrainingAndTravelVariances[],ROW()-ROW(TrainingAndTravelVariances[[#Headers],[Bir]]),1),INDEX(TrainingAndTravelPlan[],,1),0),MATCH(TrainingAndTravelVariances[[#Headers],[Bir]],TrainingAndTravelPlan[#Headers],0))-INDEX(TrainingAndTravelActual[],MATCH(INDEX(TrainingAndTravelVariances[],ROW()-ROW(TrainingAndTravelVariances[[#Headers],[Bir]]),1),INDEX(TrainingAndTravelPlan[],,1),0),MATCH(TrainingAndTravelVariances[[#Headers],[Bir]],TrainingAndTravelActual[#Headers],0)) -> -800.00 EUR | I31: =INDEX(TrainingAndTravelPlan[],MATCH(INDEX(TrainingAndTravelVariances[],ROW()-ROW(TrainingAndTravelVariances[[#Headers],[Lie]]),1),INDEX(TrainingAndTravelPlan[],,1),0),MATCH(TrainingAndTravelVariances[[#Headers],[Lie]],TrainingAndTravelPlan[#Headers],0))-INDEX(TrainingAndTravelActual[],MATCH(INDEX(TrainingAndTravelVariances[],ROW()-ROW(TrainingAndTravelVariances[[#Headers],[Lie]]),1),INDEX(TrainingAndTravelPlan[],,1),0),MATCH(TrainingAndTravelVariances[[#Headers],[Lie]],TrainingAndTravelActual[#Headers],0)) -> 2,000.00 EUR | J31: =INDEX(TrainingAndTravelPlan[],MATCH(INDEX(TrainingAndTravelVariances[],ROW()-ROW(TrainingAndTravelVariances[[#Headers],[Rgp]]),1),INDEX(TrainingAndTravelPlan[],,1),0),MATCH(TrainingAndTravelVariances[[#Headers],[Rgp]],TrainingAndTravelPlan[#Headers],0))-INDEX(TrainingAndTravelActual[],MATCH(INDEX(TrainingAndTravelVariances[],ROW()-ROW(TrainingAndTravelVariances[[#Headers],[Rgp]]),1),INDEX(TrainingAndTravelPlan[],,1),0),MATCH(TrainingAndTravelVariances[[#Headers],[Rgp]],TrainingAndTravelActual[#Headers],0)) -> 2,000.00 EUR | K31: =INDEX(TrainingAndTravelPlan[],MATCH(INDEX(TrainingAndTravelVariances[],ROW()-ROW(TrainingAndTravelVariances[[#Headers],[Rgs]]),1),INDEX(TrainingAndTravelPlan[],,1),0),MATCH(TrainingAndTravelVariances[[#Headers],[Rgs]],TrainingAndTravelPlan[#Headers],0))-INDEX(TrainingAndTravelActual[],MATCH(INDEX(TrainingAndTravelVariances[],ROW()-ROW(TrainingAndTravelVariances[[#Headers],[Rgs]]),1),INDEX(TrainingAndTravelPlan[],,1),0),MATCH(TrainingAndTravelVariances[[#Headers],[Rgs]],TrainingAndTravelActual[#Headers],0)) -> 2,000.00 EUR | L31: =INDEX(TrainingAndTravelPlan[],MATCH(INDEX(TrainingAndTravelVariances[],ROW()-ROW(TrainingAndTravelVariances[[#Headers],[Spl]]),1),INDEX(TrainingAndTravelPlan[],,1),0),MATCH(TrainingAndTravelVariances[[#Headers],[Spl]],TrainingAndTravelPlan[#Headers],0))-INDEX(TrainingAndTravelActual[],MATCH(INDEX(TrainingAndTravelVariances[],ROW()-ROW(TrainingAndTravelVariances[[#Headers],[Spl]]),1),INDEX(TrainingAndTravelPlan[],,1),0),MATCH(TrainingAndTravelVariances[[#Headers],[Spl]],TrainingAndTravelActual[#Headers],0)) -> 2,000.00 EUR | M31: =INDEX(TrainingAndTravelPlan[],MATCH(INDEX(TrainingAndTravelVariances[],ROW()-ROW(TrainingAndTravelVariances[[#Headers],[Lap]]),1),INDEX(TrainingAndTravelPlan[],,1),0),MATCH(TrainingAndTravelVariances[[#Headers],[Lap]],TrainingAndTravelPlan[#Headers],0))-INDEX(TrainingAndTravelActual[],MATCH(INDEX(TrainingAndTravelVariances[],ROW()-ROW(TrainingAndTravelVariances[[#Headers],[Lap]]),1),INDEX(TrainingAndTravelPlan[],,1),0),MATCH(TrainingAndTravelVariances[[#Headers],[Lap]],TrainingAndTravelActual[#Headers],0)) -> 2,000.00 EUR | N31: =INDEX(TrainingAndTravelPlan[],MATCH(INDEX(TrainingAndTravelVariances[],ROW()-ROW(TrainingAndTravelVariances[[#Headers],[Grd]]),1),INDEX(TrainingAndTravelPlan[],,1),0),MATCH(TrainingAndTravelVariances[[#Headers],[Grd]],TrainingAndTravelPlan[#Headers],0))-INDEX(TrainingAndTravelActual[],MATCH(INDEX(TrainingAndTravelVariances[],ROW()-ROW(TrainingAndTravelVariances[[#Headers],[Grd]]),1),INDEX(TrainingAndTravelPlan[],,1),0),MATCH(TrainingAndTravelVariances[[#Headers],[Grd]],TrainingAndTravelActual[#Headers],0)) -> 2,000.00 EUR | O31: =SUM(TrainingAndTravelVariances[[#This Row],[Sau]:[Grd]]) -> 13,000.00 EUR
B32: Su mokymu susijusios kelionių išlaidos | C32: =INDEX(TrainingAndTravelPlan[],MATCH(INDEX(TrainingAndTravelVariances[],ROW()-ROW(TrainingAndTravelVariances[[#Headers],[Sau]]),1),INDEX(TrainingAndTravelPlan[],,1),0),MATCH(TrainingAndTravelVariances[[#Headers],[Sau]],TrainingAndTravelPlan[#Headers],0))-INDEX(TrainingAndTravelActual[],MATCH(INDEX(TrainingAndTravelVariances[],ROW()-ROW(TrainingAndTravelVariances[[#Headers],[Sau]]),1),INDEX(TrainingAndTravelPlan[],,1),0),MATCH(TrainingAndTravelVariances[[#Headers],[Sau]],TrainingAndTravelActual[#Headers],0)) -> 800.00 EUR | D32: =INDEX(TrainingAndTravelPlan[],MATCH(INDEX(TrainingAndTravelVariances[],ROW()-ROW(TrainingAndTravelVariances[[#Headers],[Vas]]),1),INDEX(TrainingAndTravelPlan[],,1),0),MATCH(TrainingAndTravelVariances[[#Headers],[Vas]],TrainingAndTravelPlan[#Headers],0))-INDEX(TrainingAndTravelActual[],MATCH(INDEX(TrainingAndTravelVariances[],ROW()-ROW(TrainingAndTravelVariances[[#Headers],[Vas]]),1),INDEX(TrainingAndTravelPlan[],,1),0),MATCH(TrainingAndTravelVariances[[#Headers],[Vas]],TrainingAndTravelActual[#Headers],0)) -> -200.00 EUR | E32: =INDEX(TrainingAndTravelPlan[],MATCH(INDEX(TrainingAndTravelVariances[],ROW()-ROW(TrainingAndTravelVariances[[#Headers],[Kov]]),1),INDEX(TrainingAndTravelPlan[],,1),0),MATCH(TrainingAndTravelVariances[[#Headers],[Kov]],TrainingAndTravelPlan[#Headers],0))-INDEX(TrainingAndTravelActual[],MATCH(INDEX(TrainingAndTravelVariances[],ROW()-ROW(TrainingAndTravelVariances[[#Headers],[Kov]]),1),INDEX(TrainingAndTravelPlan[],,1),0),MATCH(TrainingAndTravelVariances[[#Headers],[Kov]],TrainingAndTravelActual[#Headers],0)) -> 600.00 EUR | F32: =INDEX(TrainingAndTravelPlan[],MATCH(INDEX(TrainingAndTravelVariances[],ROW()-ROW(TrainingAndTravelVariances[[#Headers],[Bal]]),1),INDEX(TrainingAndTravelPlan[],,1),0),MATCH(TrainingAndTravelVariances[[#Headers],[Bal]],TrainingAndTravelPlan[#Headers],0))-INDEX(TrainingAndTravelActual[],MATCH(INDEX(TrainingAndTravelVariances[],ROW()-ROW(TrainingAndTravelVariances[[#Headers],[Bal]]),1),INDEX(TrainingAndTravelPlan[],,1),0),MATCH(TrainingAndTravelVariances[[#Headers],[Bal]],TrainingAndTravelActual[#Headers],0)) -> 800.00 EUR | G32: =INDEX(TrainingAndTravelPlan[],MATCH(INDEX(TrainingAndTravelVariances[],ROW()-ROW(TrainingAndTravelVariances[[#Headers],[Geg]]),1),INDEX(TrainingAndTravelPlan[],,1),0),MATCH(TrainingAndTravelVariances[[#Headers],[Geg]],TrainingAndTravelPlan[#Headers],0))-INDEX(TrainingAndTravelActual[],MATCH(INDEX(TrainingAndTravelVariances[],ROW()-ROW(TrainingAndTravelVariances[[#Headers],[Geg]]),1),INDEX(TrainingAndTravelPlan[],,1),0),MATCH(TrainingAndTravelVariances[[#Headers],[Geg]],TrainingAndTravelActual[#Headers],0)) -> 1,200.00 EUR | H32: =INDEX(TrainingAndTravelPlan[],MATCH(INDEX(TrainingAndTravelVariances[],ROW()-ROW(TrainingAndTravelVariances[[#Headers],[Bir]]),1),INDEX(TrainingAndTravelPlan[],,1),0),MATCH(TrainingAndTravelVariances[[#Headers],[Bir]],TrainingAndTravelPlan[#Headers],0))-INDEX(TrainingAndTravelActual[],MATCH(INDEX(TrainingAndTravelVariances[],ROW()-ROW(TrainingAndTravelVariances[[#Headers],[Bir]]),1),INDEX(TrainingAndTravelPlan[],,1),0),MATCH(TrainingAndTravelVariances[[#Headers],[Bir]],TrainingAndTravelActual[#Headers],0)) -> -1,500.00 EUR | I32: =INDEX(TrainingAndTravelPlan[],MATCH(INDEX(TrainingAndTravelVariances[],ROW()-ROW(TrainingAndTravelVariances[[#Headers],[Lie]]),1),INDEX(TrainingAndTravelPlan[],,1),0),MATCH(TrainingAndTravelVariances[[#Headers],[Lie]],TrainingAndTravelPlan[#Headers],0))-INDEX(TrainingAndTravelActual[],MATCH(INDEX(TrainingAndTravelVariances[],ROW()-ROW(TrainingAndTravelVariances[[#Headers],[Lie]]),1),INDEX(TrainingAndTravelPlan[],,1),0),MATCH(TrainingAndTravelVariances[[#Headers],[Lie]],TrainingAndTravelActual[#Headers],0)) -> 2,000.00 EUR | J32: =INDEX(TrainingAndTravelPlan[],MATCH(INDEX(TrainingAndTravelVariances[],ROW()-ROW(TrainingAndTravelVariances[[#Headers],[Rgp]]),1),INDEX(TrainingAndTravelPlan[],,1),0),MATCH(TrainingAndTravelVariances[[#Headers],[Rgp]],TrainingAndTravelPlan[#Headers],0))-INDEX(TrainingAndTravelActual[],MATCH(INDEX(TrainingAndTravelVariances[],ROW()-ROW(TrainingAndTravelVariances[[#Headers],[Rgp]]),1),INDEX(TrainingAndTravelPlan[],,1),0),MATCH(TrainingAndTravelVariances[[#Headers],[Rgp]],TrainingAndTravelActual[#Headers],0)) -> 2,000.00 EUR | K32: =INDEX(TrainingAndTravelPlan[],MATCH(INDEX(TrainingAndTravelVariances[],ROW()-ROW(TrainingAndTravelVariances[[#Headers],[Rgs]]),1),INDEX(TrainingAndTravelPlan[],,1),0),MATCH(TrainingAndTravelVariances[[#Headers],[Rgs]],TrainingAndTravelPlan[#Headers],0))-INDEX(TrainingAndTravelActual[],MATCH(INDEX(TrainingAndTravelVariances[],ROW()-ROW(TrainingAndTravelVariances[[#Headers],[Rgs]]),1),INDEX(TrainingAndTravelPlan[],,1),0),MATCH(TrainingAndTravelVariances[[#Headers],[Rgs]],TrainingAndTravelActual[#Headers],0)) -> 2,000.00 EUR | L32: =INDEX(TrainingAndTravelPlan[],MATCH(INDEX(TrainingAndTravelVariances[],ROW()-ROW(TrainingAndTravelVariances[[#Headers],[Spl]]),1),INDEX(TrainingAndTravelPlan[],,1),0),MATCH(TrainingAndTravelVariances[[#Headers],[Spl]],TrainingAndTravelPlan[#Headers],0))-INDEX(TrainingAndTravelActual[],MATCH(INDEX(TrainingAndTravelVariances[],ROW()-ROW(TrainingAndTravelVariances[[#Headers],[Spl]]),1),INDEX(TrainingAndTravelPlan[],,1),0),MATCH(TrainingAndTravelVariances[[#Headers],[Spl]],TrainingAndTravelActual[#Headers],0)) -> 2,000.00 EUR | M32: =INDEX(TrainingAndTravelPlan[],MATCH(INDEX(TrainingAndTravelVariances[],ROW()-ROW(TrainingAndTravelVariances[[#Headers],[Lap]]),1),INDEX(TrainingAndTravelPlan[],,1),0),MATCH(TrainingAndTravelVariances[[#Headers],[Lap]],TrainingAndTravelPlan[#Headers],0))-INDEX(TrainingAndTravelActual[],MATCH(INDEX(TrainingAndTravelVariances[],ROW()-ROW(TrainingAndTravelVariances[[#Headers],[Lap]]),1),INDEX(TrainingAndTravelPlan[],,1),0),MATCH(TrainingAndTravelVariances[[#Headers],[Lap]],TrainingAndTravelActual[#Headers],0)) -> 2,000.00 EUR | N32: =INDEX(TrainingAndTravelPlan[],MATCH(INDEX(TrainingAndTravelVariances[],ROW()-ROW(TrainingAndTravelVariances[[#Headers],[Grd]]),1),INDEX(TrainingAndTravelPlan[],,1),0),MATCH(TrainingAndTravelVariances[[#Headers],[Grd]],TrainingAndTravelPlan[#Headers],0))-INDEX(TrainingAndTravelActual[],MATCH(INDEX(TrainingAndTravelVariances[],ROW()-ROW(TrainingAndTravelVariances[[#Headers],[Grd]]),1),INDEX(TrainingAndTravelPlan[],,1),0),MATCH(TrainingAndTravelVariances[[#Headers],[Grd]],TrainingAndTravelActual[#Headers],0)) -> 2,000.00 EUR | O32: =SUM(TrainingAndTravelVariances[[#This Row],[Sau]:[Grd]]) -> 13,700.00 EUR
B33: Tarpinė suma | C33: =SUBTOTAL(109,TrainingAndTravelVariances[Sau]) -> 1,200.00 EUR | D33: =SUBTOTAL(109,TrainingAndTravelVariances[Vas]) -> -600.00 EUR | E33: =SUBTOTAL(109,TrainingAndTravelVariances[Kov]) -> 1,200.00 EUR | F33: =SUBTOTAL(109,TrainingAndTravelVariances[Bal]) -> 1,200.00 EUR | G33: =SUBTOTAL(109,TrainingAndTravelVariances[Geg]) -> 2,000.00 EUR | H33: =SUBTOTAL(109,TrainingAndTravelVariances[Bir]) -> -2,300.00 EUR | I33: =SUBTOTAL(109,TrainingAndTravelVariances[Lie]) -> 4,000.00 EUR | J33: =SUBTOTAL(109,TrainingAndTravelVariances[Rgp]) -> 4,000.00 EUR | K33: =SUBTOTAL(109,TrainingAndTravelVariances[Rgs]) -> 4,000.00 EUR | L33: =SUBTOTAL(109,TrainingAndTravelVariances[Spl]) -> 4,000.00 EUR | M33: =SUBTOTAL(109,TrainingAndTravelVariances[Lap]) -> 4,000.00 EUR | N33: =SUBTOTAL(109,TrainingAndTravelVariances[Grd]) -> 4,000.00 EUR | O33: =SUBTOTAL(109,TrainingAndTravelVariances[METAI]) -> 26,700.00 EUR
B35: BENDROSIOS SUMOS | C35: Sau | D35: Vas | E35: Kov | F35: Bal | G35: Geg | H35: Bir | I35: Lie | J35: Rgp | K35: Rgs | L35: Spl | M35: Lap | N35: Grd | O35: Metai
B36: Faktinės mėnesio išlaidos | C36: =TrainingAndTravelVariances[[#Totals],[Sau]]+MarketingVariances[[#Totals],[Sau]]+OfficeVariances[[#Totals],[Sau]]+EmployeeVariances[[#Totals],[Sau]] -> 1,738.00 EUR | D36: =TrainingAndTravelVariances[[#Totals],[Vas]]+MarketingVariances[[#Totals],[Vas]]+OfficeVariances[[#Totals],[Vas]]+EmployeeVariances[[#Totals],[Vas]] -> -984.00 EUR | E36: =TrainingAndTravelVariances[[#Totals],[Kov]]+MarketingVariances[[#Totals],[Kov]]+OfficeVariances[[#Totals],[Kov]]+EmployeeVariances[[#Totals],[Kov]] -> 1,255.00 EUR | F36: =TrainingAndTravelVariances[[#Totals],[Bal]]+MarketingVariances[[#Totals],[Bal]]+OfficeVariances[[#Totals],[Bal]]+EmployeeVariances[[#Totals],[Bal]] -> 301.00 EUR | G36: =TrainingAndTravelVariances[[#Totals],[Geg]]+MarketingVariances[[#Totals],[Geg]]+OfficeVariances[[#Totals],[Geg]]+EmployeeVariances[[#Totals],[Geg]] -> 1,440.00 EUR | H36: =TrainingAndTravelVariances[[#Totals],[Bir]]+MarketingVariances[[#Totals],[Bir]]+OfficeVariances[[#Totals],[Bir]]+EmployeeVariances[[#Totals],[Bir]] -> -3,744.00 EUR | I36: =TrainingAndTravelVariances[[#Totals],[Lie]]+MarketingVariances[[#Totals],[Lie]]+OfficeVariances[[#Totals],[Lie]]+EmployeeVariances[[#Totals],[Lie]] -> 134,695.00 EUR | J36: =TrainingAndTravelVariances[[#Totals],[Rgp]]+MarketingVariances[[#Totals],[Rgp]]+OfficeVariances[[#Totals],[Rgp]]+EmployeeVariances[[#Totals],[Rgp]] -> 138,918.00 EUR | K36: =TrainingAndTravelVariances[[#Totals],[Rgs]]+MarketingVariances[[#Totals],[Rgs]]+OfficeVariances[[#Totals],[Rgs]]+EmployeeVariances[[#Totals],[Rgs]] -> 135,918.00 EUR | L36: =TrainingAndTravelVariances[[#Totals],[Spl]]+MarketingVariances[[#Totals],[Spl]]+OfficeVariances[[#Totals],[Spl]]+EmployeeVariances[[#Totals],[Spl]] -> 140,918.00 EUR | M36: =TrainingAndTravelVariances[[#Totals],[Lap]]+MarketingVariances[[#Totals],[Lap]]+OfficeVariances[[#Totals],[Lap]]+EmployeeVariances[[#Totals],[Lap]] -> 136,218.00 EUR | N36: =TrainingAndTravelVariances[[#Totals],[Grd]]+MarketingVariances[[#Totals],[Grd]]+OfficeVariances[[#Totals],[Grd]]+EmployeeVariances[[#Totals],[Grd]] -> 140,018.00 EUR | O36: =TrainingAndTravelVariances[[#Totals],[METAI]]+MarketingVariances[[#Totals],[METAI]]+OfficeVariances[[#Totals],[METAI]]+EmployeeVariances[[#Totals],[METAI]] -> 826,691.00 EUR
B37: Faktinių išlaidų BENDROJI SUMA | C37: =SUM($C$36:C36) -> 1,738.00 EUR | D37: =SUM($C$36:D36) -> 754.00 EUR | E37: =SUM($C$36:E36) -> 2,009.00 EUR | F37: =SUM($C$36:F36) -> 2,310.00 EUR | G37: =SUM($C$36:G36) -> 3,750.00 EUR | H37: =SUM($C$36:H36) -> 6.00 EUR | I37: =SUM($C$36:I36) -> 134,701.00 EUR | J37: =SUM($C$36:J36) -> 273,619.00 EUR | K37: =SUM($C$36:K36) -> 409,537.00 EUR | L37: =SUM($C$36:L36) -> 550,455.00 EUR | M37: =SUM($C$36:M36) -> 686,673.00 EUR | N37: =SUM($C$36:N36) -> 826,691.00 EUR

Sheet IŠLAIDŲ ANALIZĖ
B2: ='SUPLANUOTOS IŠLAIDOS'!B2:D3 -> Įmonės pavadinimas
E3: =darbalapio_pavadinimas -> Išsamios apskaičiuotos išlaidos
B5: Išlaidų kategorija | C5: Suplanuotos išlaidos | D5: Faktinės išlaidos | E5: Išlaidų nuokrypiai | F5: Nuokrypio procentai
B6: Darbuotojų išlaidos | C6: =EmployeePlan[[#Totals],[METAI]] -> 1,355,090.00 EUR | D6: =EmployeeActual[[#Totals],[METAI]] -> 659,130.00 EUR | E6: =C6-D6 -> 695,960.00 EUR | F6: =E6/C6 -> 51%
B7: ='SUPLANUOTOS IŠLAIDOS'!B10 -> Biuro išlaidos | C7: =OfficePlan[[#Totals],[METAI]] -> 138,740.00 EUR | D7: =OfficeActual[[#Totals],[METAI]] -> 69,350.00 EUR | E7: =C7-D7 -> 69,390.00 EUR | F7: =E7/C7 -> 50%
B8: ='SUPLANUOTOS IŠLAIDOS'!B21 -> Rinkodaros išlaidos | C8: =MarketingPlan[[#Totals],[METAI]] -> 67,800.00 EUR | D8: =MarketingActual[[#Totals],[METAI]] -> 33,159.00 EUR | E8: =C8-D8 -> 34,641.00 EUR | F8: =E8/C8 -> 51%
B9: ='SUPLANUOTOS IŠLAIDOS'!B30 -> Mokymas / kelionės | C9: =TrainingAndTravelPlan[[#Totals],[METAI]] -> 48,000.00 EUR | D9: =TrainingAndTravelActual[[#Totals],[METAI]] -> 21,300.00 EUR | E9: =C9-D9 -> 26,700.00 EUR | F9: =E9/C9 -> 56%
B10: ='SUPLANUOTOS IŠLAIDOS'!B35 -> BENDROSIOS SUMOS | C10: ='SUPLANUOTOS IŠLAIDOS'!O36 -> 1,609,630.00 EUR | D10: ='FAKTINĖS IŠLAIDOS'!O36 -> 782,939.00 EUR | E10: =C10-D10 -> 826,691.00 EUR | F10: =E10/C10 -> 51%
